Cogmind - Beta 13 @@@ ROGUE MODE // 2024.06.28 @ 07:57:42 Player: Sionnis Result: Destroyed by Combat Programmer with EMDS Performance ------------- Evolutions (9) 4500 Regions Visited (34) 6800 Robots Destroyed (230) 1150 Value Destroyed (7388) 7388 Prototype IDs (94) 1880 Alien Tech Used (8) 1600 Bonus (19998) 19998 TOTAL SCORE: 43316 Bonus ------- High Alert Combat Kills 512 Follower Combat Kills 2332 Network Hubs Disabled 800 Met Data Miner 300 Met Zhirov 300 Built Enhanced Grunts 300 A7 Reached Mainframe 300 Met R17 at Cetus 500 Hacked Protovariant 1000 Met R17 at Research 2000 Scanned by Researcher 500 Acquired SGEMP 2000 Met Sigix 2000 Delivered SGEMP 2000 Met MAIN.C 5000 Hacked MAIN.C 300 Friendly Fire -146 Cogmind --------- Core Integrity 0/1600 Matter 280/300 Energy 100/100 System Corruption 23% Temperature Cool (0) Movement Core (50) Location -1/Command Parts ------- > --- POWER (2) -------- (None) > --- PROPULSION (6) --- (None) > --- UTILITY (14) ----- Spectral Analyzer > --- WEAPON (3) ------- (None) > --- INVENTORY (5) ---- Improved Fusion Compressor Micro Antimatter Reactor Light Quantum Reactor GAL Module Peak State ------------ > --- POWER ------------ Improved Ion Engine Micro Antimatter Reactor > --- PROPULSION ------- Cooled Field Propulsion Drive Field Propulsion Array Field Propulsion Array Improved Diametric Drive > --- UTILITY ---------- Medium Storage Unit Improved Energy Well Quantum Shading Machine Spectral Analyzer Advanced Signal Interpreter Advanced Transmission Jammer Phase Armor Advanced Hacking Suite Advanced Hacking Suite Advanced Hacking Suite Advanced System Shield > --- WEAPON ----------- Core Cannon Enhanced Force Lance > --- INVENTORY -------- Light Ion Engine Improved VTOL Module Stasis Canceller Advanced ECM Suite Terrabomb GAL Module SGEMP Prototype [Rating: 187] Favorites ----------- Power Backup Power VII Engine Backup Power III Power Core Backup Power VII Reactor Micro Antimatter Reactor Propulsion Improved VTOL Module Treads Light Treads Wheel Wheel Hover Unit Antigrav System Flight Unit Improved VTOL Module Utility Advanced Hacking Suite Device Advanced Sensor Array Storage Medium Storage Unit Processor Enhanced Optical Array Hackware Advanced Hacking Suite Protection Experimental Utility Shielding Artifact Phase Armor Weapon Plasma Sword Energy Gun Particle Gun Energy Cannon Neutron Cannon Ballistic Gun Assault Rifle Ballistic Cannon Light Cannon Launcher Mini Grenade Launcher Special Weapon Advanced Remote Datajack Slashing Weapon Plasma Sword Piercing Weapon Enhanced Force Lance Special Melee Weapon Dirty Datajack Build | -11 -10 -9 -9 -8 -8 -7 -7 -7 -7 -6 -6 -6 -6 -6 -5 -5 -5 -5 -5 -4 -4 -4 -4 -4 -4 -4 -4 -3 -3 -2 -2 -2 -1 -1 ------- Run | Yrd Mat Mat Min Mat Sto Fac Low Low Dat Pro Fac Low Low Zio Pro Fac Upp Upp Zhi Pro Fac Was Fac Ext Cet Arc Hub Res Tes Res Qua Sec Acc Com Slots Evolved 18 | . . 2 . 2 . 2 . . . . 2 . . . . 2 . . . . 2 . . . . . . 2 . 2 . . 2 . Power 1 | . . . . . . . . . . . . . . . . 1 . . . . . . . . . . . . . . . . . . Propulsion 4 | . . 1 . 1 . . . . . . . . . . . 1 . . . . . . . . . . . 1 . . . . . . Utility 12 | . . 1 . 1 . 2 . . . . 2 . . . . . . . . . 2 . . . . . . 1 . 1 . . 2 . Weapon 1 | . . . . . . . . . . . . . . . . . . . . . . . . . . . . . . 1 . . . . Parts Attached 419 | 6 16 18 2 39 9 31 6 . 1 2 22 2 . 5 1 41 2 . 7 . 23 . 9 41 7 6 8 29 21 6 21 11 8 19 Power 45 | 1 2 5 . 4 1 . . . . . 1 1 . . . 3 1 . 1 . 2 . . 4 . . 1 3 2 1 6 2 1 3 Engine 21 | 1 2 5 . 4 1 . . . . . 1 1 . . . 2 . . . . 1 . . 1 . . . . . . 2 . . . Core 13 | . . . . . . . . . . . . . . . . 1 1 . . . 1 . . 3 . . 1 . 2 . 1 1 . 2 Reactor 11 | . . . . . . . . . . . . . . . . . . . 1 . . . . . . . . 3 . 1 3 1 1 1 Propulsion 86 | 2 3 7 2 15 6 1 . . . . 2 1 . . . 6 . . . . 2 . 1 12 1 . 5 10 2 2 3 1 1 1 Treads 28 | 2 1 7 2 10 . . . . . . . . . . . . . . . . . . . 6 . . . . . . . . . . Leg . | . . . . . . . . . . . . . . . . . . . . . . . . . . . . . . . . . . . Wheel 2 | . 2 . . . . . . . . . . . . . . . . . . . . . . . . . . . . . . . . . Hover 2 | . . . . . 1 . . . . . . . . . . . . . . . . . . . . . . . . . . . 1 . Flight 54 | . . . . 5 5 1 . . . . 2 1 . . . 6 . . . . 2 . 1 6 1 . 5 10 2 2 3 1 . 1 Utility 200 | 1 6 2 . 9 2 25 4 . . 2 16 . . 3 1 25 . . 6 . 17 . 8 21 4 5 1 13 7 2 7 2 4 7 Device 84 | . 1 . . 1 . 12 2 . . 1 8 . . 2 . 15 . . 5 . 5 . 2 11 2 1 . 6 1 1 2 2 1 3 Storage 14 | 1 3 . . . 1 2 . . . . . . . . . . . . 1 . . . . 2 . . . 1 1 . 2 . . . Processor 11 | . 2 . . 1 . 2 . . . . 2 . . . . 1 . . . . . . . . . . . 1 . . 1 . 1 . Hackware 22 | . . . . 3 . 3 1 . . . 4 . . . . 2 . . . . 3 . 2 . . 3 . 1 . . . . . . Protection 68 | . . 2 . 4 1 6 1 . . 1 2 . . 1 1 7 . . . . 9 . 4 8 2 1 1 4 5 1 1 . 2 4 Artifact 1 | . . . . . . . . . . . . . . . . . . . . . . . . . . . . . . . 1 . . . Weapon 88 | 2 5 4 . 11 . 5 2 . 1 . 3 . . 2 . 7 1 . . . 2 . . 4 2 1 1 3 10 1 5 6 2 8 Energy Gun 9 | 1 2 1 . 2 . . . . . . . . . . . . . . . . . . . 1 1 . . . . . 1 . . . Energy Cannon 18 | . . . . . . . . . . . . . . . . . . . . . . . . 1 . . . . 4 . 4 5 2 2 Ballistic Gun 10 | 1 2 3 . 3 . . . . . . . . . . . . . . . . . . . . 1 . . . . . . . . . Ballistic Cannon 5 | . 1 . . 3 . . . . . . . . . . . . . . . . . . . 1 . . . . . . . . . . Launcher 19 | . . . . 2 . 4 . . 1 . 2 . . 1 . 5 . . . . 1 . . . . . . 1 . 1 . . . 1 Special Weapon 10 | . . . . . . . . . . . . . . . . . . . . . . . . . . . . 1 3 . . 1 . 5 Impact Weapon . | . . . . . . . . . . . . . . . . . . . . . . . . . . . . . . . . . . . Slashing Weapon 10 | . . . . 1 . 1 2 . . . 1 . . 1 . 2 . . . . . . . 1 . . 1 . . . . . . . Piercing Weapon 4 | . . . . . . . . . . . . . . . . . . . . . . . . . . . . 1 3 . . . . . Special Melee Weapon 3 | . . . . . . . . . . . . . . . . . 1 . . . 1 . . . . 1 . . . . . . . . Unidentified Prototypes 47 | . . 3 . 3 1 1 . . . . 1 . . 2 . 3 . . 5 . 1 . . 1 3 . . 4 6 2 5 2 . 4 Parts Lost 96 | . 2 2 . 9 2 . . . . 1 5 . . . . 5 . . . . 3 . . 8 2 1 6 . 5 3 10 5 1 26 Power 22 | . 1 1 . . 1 . . . . . 1 . . . . 3 . . . . 1 . . 3 . . 2 . 3 1 . 1 1 3 Propulsion 23 | . . . . 3 . . . . . . . . . . . 1 . . . . . . . 4 2 . 3 . 1 1 3 1 . 4 Utility 35 | . . 1 . 4 . . . . . . 3 . . . . 1 . . . . 1 . . 1 . . . . 1 1 6 1 . 15 Weapon 16 | . 1 . . 2 1 . . . . 1 1 . . . . . . . . . 1 . . . . 1 1 . . . 1 2 . 4 Highest Loss Streak 22 | . 2 2 . 5 1 . . . . 1 4 . . . . 2 . . . . 2 . . 5 1 1 4 . 3 3 3 4 1 22 To Critical Strikes 1 | . . . . . . . . . . . . . . . . . . . . . . . . 1 . . . . . . . . . . Average Slot Usage (%) 92 | . 97 97 100 91 98 98 100 100 92 96 91 93 93 93 92 93 93 94 94 94 97 94 99 92 88 88 94 91 94 91 79 62 59 73 Engine 5 | . 13 9 11 8 7 7 7 7 7 7 5 6 6 6 6 3 . . . . 1 5 5 1 . . . . . . 1 . . . Core 2 | . . . . . . . . . . . . . . . . 6 5 5 5 5 8 5 5 6 5 5 7 6 7 4 1 6 2 3 Treads 9 | . 21 32 33 32 . . . . . . . . . . . . . . . . . . . 12 . . . . . . . . . . Flight 16 | . . . . . 35 30 30 30 30 30 26 26 26 26 26 28 29 29 29 29 25 26 26 10 24 21 24 26 27 21 18 8 8 9 Device 5 | . 1 . . . 4 6 5 7 7 6 6 6 6 6 5 8 5 5 5 5 5 5 8 8 5 8 5 6 9 12 9 4 6 11 Storage 7 | . 14 11 11 9 9 7 7 7 7 7 6 6 6 6 6 5 5 5 5 5 5 5 5 5 5 5 5 4 4 4 7 8 8 7 Processor 10 | . 10 11 11 16 . 5 7 7 7 7 11 13 13 13 13 11 11 11 11 11 10 10 10 10 10 10 10 9 9 8 8 8 10 11 Hackware 15 | . . . . . 18 23 23 23 23 23 25 20 20 20 20 17 17 17 17 17 23 15 22 21 21 22 26 22 19 17 16 13 12 11 Protection 4 | . . 11 11 5 4 . 1 . . . . 6 6 6 6 2 5 5 5 5 6 10 4 6 9 5 4 6 7 6 2 3 4 9 Energy Gun 1 | . 15 2 . 2 . . . . . . . . . . . . . . . . . . . . . . . . . . . . . . Ballistic Gun 2 | . 11 8 11 6 . . . . . . . . . . . . . . . . . . . . . 5 5 . . . . . . . Ballistic Cannon 2 | . . 11 11 8 . . . . . . . . . . . . . . . . . . . 2 . . . . . . . . . . Slashing Weapon 2 | . . . . . 9 6 7 7 7 7 5 6 6 6 5 5 5 5 5 5 5 5 5 2 5 . 1 . . . . . . . Naked Turns . | . . . . . . . . . . . . . . . . . . . . . . . . . . . . . . . . . . . Heaviest Build 133 | 11 91 101 101 103 17 18 17 16 16 17 20 20 20 20 20 29 20 20 20 20 27 24 26 133 31 28 34 36 50 51 55 51 33 55 Greatest Support 115 | 40 40 60 60 80 20 20 20 20 20 20 20 20 20 20 20 38 26 29 26 29 33 27 33 115 30 30 37 39 42 66 62 52 37 53 Greatest Overweight (x) 13 | 1 9 1 1 4 . . . . . . 4 . . . . . . . . . . . . 4 1 . 7 . 1 . 13 1 . 4 Average Overweight (x) . | . 3 1 1 1 . . . . . . . . . . . . . . . . . . . . . . . . . . . . . . Largest Inventory Capacity 25 | 8 25 25 25 25 10 10 10 10 10 10 10 10 10 10 10 10 10 10 10 10 10 10 10 25 10 10 10 10 10 10 10 10 10 10 Average Capacity 14 | 7 19 25 25 25 10 10 10 10 10 10 10 10 10 10 10 10 10 10 10 10 10 10 10 20 10 10 10 10 10 10 10 10 10 9 Most Carried 25 | 3 25 25 25 25 10 10 10 10 10 10 10 10 10 10 10 10 10 10 10 10 10 10 10 24 10 10 10 10 10 10 10 10 7 10 Average Carried 13 | 1 15 23 24 23 9 8 10 10 10 10 9 9 10 9 10 9 9 10 9 10 9 10 9 17 9 9 9 9 9 8 9 9 5 9 Final Capacity 25 | 8 25 25 25 25 10 10 10 10 10 10 10 10 10 10 10 10 10 10 10 10 10 10 10 10 10 10 10 10 10 10 10 10 10 5 Final Carried 25 | 3 25 24 25 11 10 10 10 10 10 10 10 10 10 10 10 10 10 10 10 10 10 10 10 10 10 10 9 10 8 9 10 7 7 4 Class Distribution -------------------- 28% | Hacker-Scout 17% | Mutant 17% | Hacker-Sprinter 9% | Scavenger-Mutant 6% | Hacker-Ninja 6% | Wizard-Scout 5% | Hacker-Skirmisher Dominant Class ---------------- Mutant | -10/Materials Mutant | -9/Materials Mutant | -9/Mines Scavenger-Mutant | -8/Materials Hacker-Sprinter | -8/Storage Hacker-Sprinter | -7/Factory Hacker-Sprinter | -7/Lower Caves Hacker-Sprinter | -7/Lower Caves Hacker-Sprinter | -7/Data Miner Hacker-Sprinter | -6/Proximity Caves Hacker-Scout | -6/Factory Hacker-Scout | -6/Lower Caves Hacker-Scout | -6/Lower Caves Hacker-Scout | -6/Zion Hacker-Scout | -5/Proximity Caves Hacker-Scout | -5/Factory Hacker-Scout | -5/Upper Caves Hacker-Scout | -5/Upper Caves Hacker-Scout | -5/Zhirov Hacker-Scout | -4/Proximity Caves Hacker-Scout | -4/Factory Hacker-Scout | -4/Waste Hacker-Scout | -4/Factory Hacker-Skirmisher | -4/Extension Hacker-Scout | -4/Cetus Hacker-Sprinter | -4/Archives Wizard-Mutant | -4/Hub_04(d) Wizard-Scout | -3/Research Hacker-Ninja | -3/Testing Hacker-Ninja | -2/Research Hacker-Sprinter | -2/Quarantine Hacker-Sprinter | -2/Section 7 Hacker-Scout | -1/Access Hacker-Scout | -1/Command Resources | -11 -10 -9 -9 -8 -8 -7 -7 -7 -7 -6 -6 -6 -6 -6 -5 -5 -5 -5 -5 -4 -4 -4 -4 -4 -4 -4 -4 -3 -3 -2 -2 -2 -1 -1 ----------- Run | Yrd Mat Mat Min Mat Sto Fac Low Low Dat Pro Fac Low Low Zio Pro Fac Upp Upp Zhi Pro Fac Was Fac Ext Cet Arc Hub Res Tes Res Qua Sec Acc Com Matter Collected 6834 | 209 379 427 236 1243 170 400 112 18 . 40 161 40 66 38 35 412 24 18 125 6 151 . 147 839 102 208 134 298 82 156 219 144 60 135 Remotely . | . . . . . . . . . . . . . . . . . . . . . . . . . . . . . . . . . . . Salvage Created 9214 | . 969 819 93 1611 231 307 23 . . 29 619 . . . . 778 . . 355 5 154 . 245 783 33 303 328 212 182 345 519 271 . . Parts 462 | . 65 52 10 78 14 19 1 . . 3 21 . . . . 44 . . 8 . 5 . 6 33 1 18 15 6 13 17 23 10 . . Haulers Intercepted 26 | . 2 5 . 3 3 1 . . . . 3 . . . . 3 . . . . 1 . 2 . . . . 1 . 2 . . . . Recyclers Shooed 9 | . . 2 . 2 1 . . . . . . . . . . . . . . . . . . 1 . . . . . . 3 . . . Parts Field Recycled . | . . . . . . . . . . . . . . . . . . . . . . . . . . . . . . . . . . . Retrieved Matter . | . . . . . . . . . . . . . . . . . . . . . . . . . . . . . . . . . . . Parts Self-Destructed 9 | . . . . . . . . . . 1 . 3 . . 3 . . . 2 . . . . . . . . . . . . . . . Prevented 2 | . . . . . . . 2 . . . . . . . . . . . . . . . . . . . . . . . . . . . Kills | -11 -10 -9 -9 -8 -8 -7 -7 -7 -7 -6 -6 -6 -6 -6 -5 -5 -5 -5 -5 -4 -4 -4 -4 -4 -4 -4 -4 -3 -3 -2 -2 -2 -1 -1 ------- Run | Yrd Mat Mat Min Mat Sto Fac Low Low Dat Pro Fac Low Low Zio Pro Fac Upp Upp Zhi Pro Fac Was Fac Ext Cet Arc Hub Res Tes Res Qua Sec Acc Com Combat Hostiles Destroyed 134 | . 18 14 6 35 3 3 3 . . 3 8 . . . . 19 . . . 1 2 . . 6 . 1 2 . 1 3 2 4 . . Melee 17 | . . . . . 2 1 . . . . 2 . . . . 2 . . . 1 1 . . 6 . . . . . . 2 . . . Guns 43 | . 18 5 4 13 . . . . . . . . . . . . . . . . . . . . . 1 2 . . . . . . . Cannons 32 | . . 7 2 19 . . . . . . . . . . . . . . . . . . . . . . . . . . . 4 . . AOE 42 | . . 2 . 3 1 2 3 . . 3 6 . . . . 17 . . . . 1 . . . . . . . 1 3 . . . . Classes Destroyed 20 | . 9 1 1 5 . 1 . . . . . . . . . . . . . 1 . . . . . . 1 . 1 . . . . . Worker 14 | . 1 2 . 3 . 2 . . . . . . . . . . . . . . . . . . . . 4 . 2 . . . . . Builder 8 | . 1 . . 2 . . . . . . . . . . . 2 . . . . . . . 1 . . . . . 1 1 . . . Tunneler 1 | . 1 . . . . . . . . . . . . . . . . . . . . . . . . . . . . . . . . . Hauler 26 | . 2 5 . 3 3 1 . . . . 3 . . . . 3 . . . . 1 . 2 . . . . 1 . 2 . . . . Recycler 10 | . 1 1 . 2 . 1 . . . . . . . . . . . . . . . . . 1 . . 1 1 . . 2 . . . Mechanic 3 | . . . . 1 1 1 . . . . . . . . . . . . . . . . . . . . . . . . . . . . Operator 16 | . 4 . . 1 . 1 . . . . . . . . . 1 . . . . . . 1 1 . 6 1 . . . . . . . Drone 1 | . . . . . . . . . . . . . . . . . . . . 1 . . . . . . . . . . . . . . Watcher 16 | . 3 . . 3 1 2 . . . . 2 . . . . 2 . . . . . . . 1 1 . 1 . . . . . . . Swarmer 46 | . 3 4 4 4 3 2 3 . . 3 3 . . . . 13 . . . . . . . . . . 1 . . 3 . . . . Cutter 1 | . . . . . . . . . . . . . . . . . . . . . . . . . . . 1 . . . . . . . Grunt 54 | . 15 5 . 24 . . . . . . 4 . . . . 3 . . . . . . . 3 . . . . . . . . . . Brawler 2 | . . . . 1 . . . . . . . . . . . 1 . . . . . . . . . . . . . . . . . . Duelist 2 | . . . . 2 . . . . . . . . . . . . . . . . . . . . . . . . . . . . . . Protector 1 | . . . . 1 . . . . . . . . . . . . . . . . . . . . . . . . . . . . . . Researcher 2 | . . . . . . . . . . . . . . . . . . . . . . . . . . . . . 1 . 1 . . . Sentry 12 | . . 5 . 2 . . . . . . . . . . . . . . . . . . . 3 . 1 . . 1 . . . . . Demolisher 2 | . . . 2 . . . . . . . . . . . . . . . . . . . . . . . . . . . . . . . Hunter 4 | . . . . 1 . . . . . . . . . . . . . . . . . . . . . . . . . . . 3 . . Programmer 9 | . . . . . . 1 . . . . 1 . . . . 2 . . . . 2 . . . . . . . . . 2 1 . . Savage 1 | . . . . . . . . . . . . . . . . . . . . . . . . 1 . . . . . . . . . . Best Kill Streak 10 | . 8 8 3 7 4 4 3 . . 3 4 . . . . 10 . . . 1 1 . 1 3 1 5 7 2 3 4 4 3 . . Combat Bots Only 8 | . 3 4 3 5 3 2 3 . . 3 4 . . . . 8 . . . 1 1 . . 3 . 1 1 . 1 3 2 3 . . Max Kills in Single Turn 7 | . 4 2 1 2 1 3 1 . . 2 4 . . . . 7 . . . 1 1 . 1 1 1 1 6 1 2 2 1 2 . . Gunslinging . | . . . . . . . . . . . . . . . . . . . . . . . . . . . . . . . . . . . Exploded 5 | . . 1 . 2 1 1 1 . . 2 4 . . . . 5 . . . . 1 . . . . . . . 1 2 . . . . Melee 1 | . . . . . 1 1 . . . . 1 . . . . 1 . . . 1 1 . . 1 . . . . . . 1 . . . Uniques/NPCs Destroyed . | . . . . . . . . . . . . . . . . . . . . . . . . . . . . . . . . . . . Combat | -11 -10 -9 -9 -8 -8 -7 -7 -7 -7 -6 -6 -6 -6 -6 -5 -5 -5 -5 -5 -4 -4 -4 -4 -4 -4 -4 -4 -3 -3 -2 -2 -2 -1 -1 -------- Run | Yrd Mat Mat Min Mat Sto Fac Low Low Dat Pro Fac Low Low Zio Pro Fac Upp Upp Zhi Pro Fac Was Fac Ext Cet Arc Hub Res Tes Res Qua Sec Acc Com Hostile Shots Fired 1238 | . 93 56 38 194 23 56 13 . . 9 72 9 . . 1 95 . 8 . 2 59 . 14 78 8 6 61 2 57 26 62 33 10 153 Missed 508 | . 30 15 11 53 14 32 7 . . 6 36 7 . . 1 56 . 8 . . 35 . 4 30 1 . 31 1 28 9 20 11 5 57 Damage Taken 15668 | . 723 597 251 2302 172 309 135 . . 56 607 11 . . . 727 . . . 45 541 . 149 984 182 151 958 74 706 531 1186 488 216 3567 Core 3966 | . 150 68 7 173 16 93 73 . . 21 328 5 . . . 144 . . . 45 182 . 72 249 . 78 210 . 253 . 127 42 27 1603 Absorbed by Shields 530 | . . . . . . . . . . . . . . . . . . . . . . . . 489 41 . . . . . . . . . Redirected to Shielding 2021 | . . . . . 33 30 14 . . . 31 . . . . 198 . . . . 174 . 51 157 . 21 . 42 202 225 37 95 108 603 Regen/Repaired (Parts) 1207 | . 6 . . 75 421 105 . . . . . . . . . 77 . . . . 259 . . . . . . 185 . . . 79 . . Core Remaining (%) 68 | 100 40 . 81 . 65 . . . . 73 . . . . 60 . . . . 81 . . . . . . 31 . 73 . . 84 . . Volleys Fired 432 | . 76 44 21 145 1 5 6 . . 3 2 . . . . 6 . . . . 3 . . 34 . 35 20 . 2 4 6 5 1 13 Largest 2 | . 2 2 2 2 1 1 1 . . 1 1 . . . . 1 . . . . 1 . . 1 . 1 1 . 1 1 1 2 1 1 Hottest 420 | . 105 80 58 100 30 36 30 . . 30 39 . . . . 39 . . . . 39 . . 61 . 35 35 . 200 49 120 420 113 113 Shots Fired 697 | . 146 88 43 270 1 5 6 . . 3 2 . . . . 6 . . . . 3 . . 37 . 34 20 . 2 4 6 6 1 14 Gun 391 | . 146 44 21 125 . . . . . . . . . . . . . . . . . . . . . 34 20 . . . 1 . . . Cannon 270 | . . 44 22 142 . . . . . . . . . . . . . . . . . . . 37 . . . . 2 . 5 6 1 11 Launcher 33 | . . . . 3 1 5 6 . . 3 2 . . . . 6 . . . . 3 . . . . . . . . 4 . . . . Special 3 | . . . . . . . . . . . . . . . . . . . . . . . . . . . . . . . . . . 3 Kinetic 498 | . 69 73 43 223 . . . . . . . . . . . . . . . . . . . 36 . 34 20 . . . . . . . Thermal 141 | . 70 . . 44 . . . . . . . . . . . . . . . . . . . 1 . . . . 2 . 6 6 1 11 Explosive 29 | . . . . 3 1 5 6 . . 3 2 . . . . 6 . . . . 3 . . . . . . . . . . . . . Electromagnetic 26 | . 7 15 . . . . . . . . . . . . . . . . . . . . . . . . . . . 4 . . . . Robot Hit Streak 33 | . 9 13 7 33 . 3 1 . . 3 4 . . . . 1 . . . . . . . 14 . 5 3 . 5 6 . 7 . 5 Robot Miss Streak 5 | . 4 3 2 5 1 2 1 . . . . . . . . 1 . . . . . . . 2 . 3 3 . . . . 1 . . Penetration Max 1 | . . . . . . . . . . . . . . . . . . . . . . . . 1 . 1 . . . . . 1 . . Secondary Targets 3 | . 3 . . . . . . . . . . . . . . . . . . . . . . . . . . . . . . . . . Max Gunslinging Chain 1 | . 1 . . . . . . . . . . . . . . . . . . . . . . . . . . . . . . . . . Shots Hit Robots 625 | . 98 63 29 204 19 16 1 . . 2 26 . . . . 29 . . 6 1 11 . 8 49 4 20 8 3 4 4 13 3 . 4 Core Hits 333 | . 45 34 10 86 9 14 4 . . 4 19 . . . . 29 . . 3 . 8 . 3 13 . 11 17 1 4 9 5 4 . 1 Critical Kills 8 | . . . . . . . . . . . . . . . . . . . . . . . . 1 . 4 1 . . . . 2 . . Critical Parts Destroyed 10 | . . . . . . . . . . . . . . . . . . . . . . . . 7 . 2 . . . . . 1 . . Critical Strikes 50 | . 1 . . 7 4 2 . . . . 2 . . . . 1 . . . . . . 1 16 . 6 1 1 1 1 3 3 . . Burn 4 | . 1 . . 3 . . . . . . . . . . . . . . . . . . . . . . . . . . . . . . Destroy 25 | . . . . . . . . . . . . . . . . . . . . . . . . 15 . 6 1 . . . . 3 . . Blast 4 | . . . . 4 . . . . . . . . . . . . . . . . . . . . . . . . . . . . . . Sever 11 | . . . . . 4 2 . . . . 2 . . . . 1 . . . . . . 1 1 . . . . . . . . . . Impale 6 | . . . . . . . . . . . . . . . . . . . . . . . . . . . . 1 1 1 3 . . . Melee Attacks 402 | . . . . . 27 61 . 3 . . 66 . 2 1 . 64 . 2 6 2 33 . 33 22 7 . 6 21 10 16 20 . . . Impact . | . . . . . . . . . . . . . . . . . . . . . . . . . . . . . . . . . . . Slashing 328 | . . . . . 27 61 . 3 . . 66 . 2 1 . 64 . 2 6 2 33 . 33 21 7 . . . . . . . . . Piercing 74 | . . . . . . . . . . . . . . . . . . . . . . . . 1 . . 6 21 10 16 20 . . . Sneak Attacks 38 | . . . . . 6 4 . . . . 3 . . . . 5 . . . 1 1 . 2 7 . . . 3 1 2 3 . . . Combat Hostiles 5 | . . . . . . . . . . . . . . . . . . . . 1 . . . 4 . . . . . . . . . . Follow-up Attacks . | . . . . . . . . . . . . . . . . . . . . . . . . . . . . . . . . . . . Damage Inflicted 25426 | . 1622 1310 516 4366 998 1039 309 . . 212 1805 . . . . 3749 . . 584 100 763 . 487 1706 217 646 1434 496 789 602 903 735 . 38 Guns 4567 | . 1268 558 205 1761 . . . . . . . . . . . . . . . . . . . . . 646 129 . . . . . . . Cannons 4615 | . . 520 311 2206 . . . . . . . . . . . . . . . . . . . 549 . . . . 256 . . 735 . 38 Explosions 7318 | . 350 231 . 358 59 438 309 . . 212 827 . . . . 2285 . . . . 213 . . . . . 1300 . 373 363 . . . . Melee 8879 | . . . . . 939 601 . . . . 978 . . . . 1464 . . 584 100 550 . 486 1157 217 . 5 496 160 239 903 . . . Ramming 47 | . 4 1 . 41 . . . . . . . . . . . . . . . . . . 1 . . . . . . . . . . . Kinetic 6556 | . 569 849 516 3336 . . . . . . . . . . . . . . . . . . . 511 . 646 129 . . . . . . . Thermal 5110 | . 942 231 . 631 . . . . . . 493 . . . . 1301 . . . . . . . 38 . . . . 629 72 . 735 . 38 Explosive 2907 | . . . . 358 59 438 309 . . 212 334 . . . . 984 . . . . 213 . . . . . . . . . . . . . Electromagnetic 1927 | . 107 229 . . . . . . . . . . . . . . . . . . . . . . . . 1300 . . 291 . . . . Impact . | . . . . . . . . . . . . . . . . . . . . . . . . . . . . . . . . . . . Slashing 7074 | . . . . . 939 601 . . . . 978 . . . . 1464 . . 584 100 550 . 486 1155 217 . . . . . . . . . Piercing 1805 | . . . . . . . . . . . . . . . . . . . . . . . . 2 . . 5 496 160 239 903 . . . Highest Corruption 23 | . . 5 5 . 1 1 1 1 1 1 1 1 1 1 . 2 2 2 2 2 2 6 7 7 4 4 8 . . . 7 8 . 23 Average Corruption 3 | . . 2 5 . 1 1 1 1 1 1 1 1 1 1 . 1 2 2 2 2 1 2 6 4 4 3 2 . . . 3 7 . 7 Corruption Purged 9 | . . . . . . . . . . . . . . . . . . . . . 2 . . 3 . 4 . . . . . . . . Corruption Blocked . | . . . . . . . . . . . . . . . . . . . . . . . . . . . . . . . . . . . Effects 129 | . . 6 6 . 1 6 3 . . 1 2 . 1 . . 4 2 1 2 1 1 1 21 44 8 3 2 . . . 3 4 . 6 Message Errors 31 | . . 4 2 . 1 2 . . . . . . . . . 1 2 . . 1 . . 2 12 1 . . . . . . 1 . 2 Matter Fused 35 | . . 1 2 . . 2 . . . 1 1 . . . . 1 . . 1 . 1 1 4 12 6 1 . . . . . 1 . . Heat Flow Errors 7 | . . . . . . . . . . . . . 1 . . . . . . . . . 2 3 . 1 . . . . . . . . Energy Discharges 17 | . . 1 . . . 1 1 . . . . . . . . 2 . . . . . . 4 5 . . . . . . 1 1 . 1 Parts Rejected 2 | . . . . . . . . . . . 1 . . . . . . . . . . . 1 . . . . . . . . . . . Parts Fused 1 | . . . . . . . . . . . . . . . . . . . . . . . . 1 . . . . . . . . . . Data Loss (minor) 17 | . . . 1 . . . 1 . . . . . . . . . . 1 1 . . . 3 4 1 . 2 . . . 2 . . 1 Data Loss (major) 7 | . . . . . . . . . . . . . . . . . . . . . . . 5 2 . . . . . . . . . . Misfires 6 | . . . 1 . . . . . . . . . . . . . . . . . . . . 4 . . . . . . . . . 1 Alerts 3 | . . . . . . 1 1 . . . . . . . . . . . . . . . . . . . . . . . . 1 . . Misdirections 1 | . . . . . . . . . . . . . . . . . . . . . . . . . . . . . . . . . . 1 Weapon Failures 2 | . . . . . . . . . . . . . . . . . . . . . . . . 1 . 1 . . . . . . . . Overload Shots . | . . . . . . . . . . . . . . . . . . . . . . . . . . . . . . . . . . . Overflow Damage 2404 | . 174 14 . 12 47 40 . . . 5 184 . . . . 334 . . 223 70 37 . 103 167 69 . 50 216 107 68 284 200 . . Projectiles 269 | . . 14 . 12 . . . . . . . . . . . . . . . . . . . . . . . . 43 . . 200 . . Explosions 535 | . 174 . . . . . . . . 5 61 . . . . 174 . . . . 11 . . . . . 50 . 60 . . . . . Melee 1600 | . . . . . 47 40 . . . . 123 . . . . 160 . . 223 70 26 . 103 167 69 . . 216 4 68 284 . . . Knockbacks 38 | . . 4 3 30 . . . . . . . . . . . . . . . . . . . 1 . . . . . . . . . . Impact . | . . . . . . . . . . . . . . . . . . . . . . . . . . . . . . . . . . . Kinetic 35 | . . 4 3 27 . . . . . . . . . . . . . . . . . . . 1 . . . . . . . . . . Secondary 3 | . . . . 3 . . . . . . . . . . . . . . . . . . . . . . . . . . . . . . Self-Inflicted Damage 524 | . . 78 . 74 . . 50 . . . 33 . . . . 120 . . . . 65 . . . . . 104 . . . . . . . Shots 14 | . . 3 . 2 . . 2 . . . 1 . . . . 3 . . . . 2 . . . . . 1 . . . . . . . Rammed 7 | . 2 1 . 3 . . . . . . . . . . . . . . . . . . 1 . . . . . . . . . . . Targets Rammed 8 | . 2 1 . 4 . . . . . . . . . . . . . . . . . . 1 . . . . . . . . . . . Kicked . | . . . . . . . . . . . . . . . . . . . . . . . . . . . . . . . . . . . Crushed 1 | . . . . 1 . . . . . . . . . . . . . . . . . . . . . . . . . . . . . . Highest Temperature 342 | . 287 255 28 342 2 2 . . . . 14 . 136 . . 29 . 10 . . 6 . 223 200 . 103 42 . 57 34 . 252 . 330 Average Temperature 58 | . 64 29 13 74 2 1 . . . . 5 . 70 . . 4 . 5 . . 6 . 123 76 . 71 17 . 24 15 . 112 . 108 Received Heat Transfer 2705 | . 366 195 . 1197 63 117 . . . . 102 . . . . 144 . . . 9 . . . 88 31 9 69 9 90 36 81 27 . 72 Effects 5 | . . 1 . 4 . . . . . . . . . . . . . . . . . . . . . . . . . . . . . . Energy Bleed 2 | . . 1 . 1 . . . . . . . . . . . . . . . . . . . . . . . . . . . . . . Interference 3 | . . . . 3 . . . . . . . . . . . . . . . . . . . . . . . . . . . . . . Siege Activations . | . . . . . . . . . . . . . . . . . . . . . . . . . . . . . . . . . . . Robots Corrupted 1 | . . . . . . . . . . . . . . . . . . . . . . . . . . . 1 . . . . . . . Combat Hostiles . | . . . . . . . . . . . . . . . . . . . . . . . . . . . . . . . . . . . Parts Fried 10 | . . . . . . . . . . . . . . . . . . . . . . . . . . . 8 . . 2 . . . . Impact Corruptions . | . . . . . . . . . . . . . . . . . . . . . . . . . . . . . . . . . . . Robots Melted . | . . . . . . . . . . . . . . . . . . . . . . . . . . . . . . . . . . . Combat Hostiles . | . . . . . . . . . . . . . . . . . . . . . . . . . . . . . . . . . . . Parts Melted 7 | . 2 . . 5 . . . . . . . . . . . . . . . . . . . . . . . . . . . . . . Heat Transferred 5377 | . 1749 300 . 1517 . . . . . . 300 . . . . 850 . . . . . . . . . . . . 500 50 . 74 . 37 Parts Sabotaged . | . . . . . . . . . . . . . . . . . . . . . . . . . . . . . . . . . . . Parts Stolen . | . . . . . . . . . . . . . . . . . . . . . . . . . . . . . . . . . . . Parts Stripped . | . . . . . . . . . . . . . . . . . . . . . . . . . . . . . . . . . . . Power Chain Reactions 7 | . 1 5 . . . . . . . . . . . . . . . . . . . . . . . . . . . 1 . . . . Alert | -11 -10 -9 -9 -8 -8 -7 -7 -7 -7 -6 -6 -6 -6 -6 -5 -5 -5 -5 -5 -4 -4 -4 -4 -4 -4 -4 -4 -3 -3 -2 -2 -2 -1 -1 ------- Run | Yrd Mat Mat Min Mat Sto Fac Low Low Dat Pro Fac Low Low Zio Pro Fac Upp Upp Zhi Pro Fac Was Fac Ext Cet Arc Hub Res Tes Res Qua Sec Acc Com Peak Influence 1481 | . 287 419 260 574 683 611 . . . . 605 . . . . 1164 . . . . 510 45 160 510 539 502 1481 777 429 367 532 539 566 660 Initial 777 | . . . 105 101 242 218 . . . . 285 . . . . . . . . . 321 . 31 78 238 215 175 777 94 240 195 296 308 361 Average 290 | . 135 143 229 257 404 407 . . . . 285 . . . . 554 . . . . 345 13 95 225 436 439 608 183 259 152 341 400 409 540 Maximum Alert Level 4 | . 1 2 1 2 2 2 . . . . 2 . . . . 4 . . . . 2 . . 2 2 2 4 3 2 1 2 2 2 2 Low Security (%) 37 | 100 78 65 21 46 . 3 . . . . 28 . . . . 6 . . . . 9 100 100 45 . . 7 64 28 56 3 . . . Level 1 36 | . 21 25 78 33 58 42 . . . . 55 . . . . 55 . . . . 59 . . 29 12 22 16 32 66 43 67 43 35 13 Level 2 23 | . . 9 . 19 41 54 . . . . 15 . . . . 4 . . . . 31 . . 24 87 77 61 . 4 . 28 56 64 86 Level 3 1 | . . . . . . . . . . . . . . . . 24 . . . . . . . . . . 1 3 . . . . . . Level 4 1 | . . . . . . . . . . . . . . . . 10 . . . . . . . . . . 12 . . . . . . . Level 5 . | . . . . . . . . . . . . . . . . . . . . . . . . . . . . . . . . . . . High Security . | . . . . . . . . . . . . . . . . . . . . . . . . . . . . . . . . . . . Max Security . | . . . . . . . . . . . . . . . . . . . . . . . . . . . . . . . . . . . Squads Dispatched 110 | . 5 1 . 7 3 11 . . . . 12 . . . . 19 . . . . 5 . 6 1 . . 12 9 7 3 3 1 3 2 Investigation 60 | . 1 . . 4 2 9 . . . . 8 . . . . 14 . . . . 4 . 4 . . . 4 5 1 1 . . 3 . Extermination 11 | . . . . . . 1 . . . . 2 . . . . 2 . . . . 1 . 2 . . . 1 . . . 1 . . 1 Reinforcement 26 | . 4 1 . 1 . 1 . . . . 2 . . . . 2 . . . . . . . 1 . . 3 4 2 2 1 1 . 1 Assault 7 | . . . . 1 . . . . . . . . . . . 1 . . . . . . . . . . 3 . 2 . . . . . Garrison 6 | . . . . 1 1 . . . . . . . . . . . . . . . . . . . . . 1 . 2 . 1 . . . Intercept . | . . . . . . . . . . . . . . . . . . . . . . . . . . . . . . . . . . . Searches Triggered 4 | . . . . . . 1 . . . . 1 . . . . . . . . . 1 . . . . . . . . . 1 . . . Data Miner Redirects 2 | . . . . . . . . . . . . . . . . . . . . . . . . . . . . . . . . . 2 . Construction Impeded 1 | . . . . . . . . . . . . . . . . . . . . . . . . . . . 1 . . . . . . . Haulers Reinforced 7 | . . . . . . 1 . . . . 2 . . . . 2 . . . . . . . . . . . 1 . 1 . . . . Active Scanning Responses . | . . . . . . . . . . . . . . . . . . . . . . . . . . . . . . . . . . . Cargo Convoy Interrupts . | . . . . . . . . . . . . . . . . . . . . . . . . . . . . . . . . . . . Stealth | -11 -10 -9 -9 -8 -8 -7 -7 -7 -7 -6 -6 -6 -6 -6 -5 -5 -5 -5 -5 -4 -4 -4 -4 -4 -4 -4 -4 -3 -3 -2 -2 -2 -1 -1 --------- Run | Yrd Mat Mat Min Mat Sto Fac Low Low Dat Pro Fac Low Low Zio Pro Fac Upp Upp Zhi Pro Fac Was Fac Ext Cet Arc Hub Res Tes Res Qua Sec Acc Com Distress Signals 49 | . 4 3 . 6 2 . . . . . 2 . . . . 3 . . . 1 3 . 2 1 2 1 2 5 3 3 3 2 1 . Communications Jammed 36 | . . . . . . . . . . . . . . . . . . . . . . . . . . . . 20 16 . . . . . Distress Signals 36 | . . . . . . . . . . . . . . . . . . . . . . . . . . . . 20 16 . . . . . Times Spotted 636 | . 28 18 6 52 27 53 3 . . 10 40 1 . . 4 82 . 7 . 4 33 5 18 28 10 18 52 11 36 17 33 11 13 16 Peak Tracking Total 37 | . 5 4 3 5 8 11 3 . . 10 10 1 . . 4 18 . 4 . 4 26 5 5 9 5 2 37 3 16 12 10 7 10 12 Tactical Retreats 81 | . 1 1 . . . 15 . . . 4 10 . . . . 15 . 3 . 1 4 . . 3 . . 4 2 1 4 8 1 2 2 Traps | -11 -10 -9 -9 -8 -8 -7 -7 -7 -7 -6 -6 -6 -6 -6 -5 -5 -5 -5 -5 -4 -4 -4 -4 -4 -4 -4 -4 -3 -3 -2 -2 -2 -1 -1 ------- Run | Yrd Mat Mat Min Mat Sto Fac Low Low Dat Pro Fac Low Low Zio Pro Fac Upp Upp Zhi Pro Fac Was Fac Ext Cet Arc Hub Res Tes Res Qua Sec Acc Com Traps Triggered 25 | . 1 . . 1 . . . . . . 1 . . . . 1 . . . . 6 . 3 9 . . 1 . 1 . 1 . . . Indirectly . | . . . . . . . . . . . . . . . . . . . . . . . . . . . . . . . . . . . Trap Hack Attempts . | . . . . . . . . . . . . . . . . . . . . . . . . . . . . . . . . . . . Triggered . | . . . . . . . . . . . . . . . . . . . . . . . . . . . . . . . . . . . Disarmed 4 | . . . . . . . . . . . . . . . . . . . . . . . . . . . . 4 . . . . . . Reprogrammed . | . . . . . . . . . . . . . . . . . . . . . . . . . . . . . . . . . . . Reused . | . . . . . . . . . . . . . . . . . . . . . . . . . . . . . . . . . . . Traps Extracted . | . . . . . . . . . . . . . . . . . . . . . . . . . . . . . . . . . . . Installed . | . . . . . . . . . . . . . . . . . . . . . . . . . . . . . . . . . . . Triggered 1 | . . . . . . . . . . 1 . . . . . . . . . . . . . . . . . . . . . . . . Machines | -11 -10 -9 -9 -8 -8 -7 -7 -7 -7 -6 -6 -6 -6 -6 -5 -5 -5 -5 -5 -4 -4 -4 -4 -4 -4 -4 -4 -3 -3 -2 -2 -2 -1 -1 ---------- Run | Yrd Mat Mat Min Mat Sto Fac Low Low Dat Pro Fac Low Low Zio Pro Fac Upp Upp Zhi Pro Fac Was Fac Ext Cet Arc Hub Res Tes Res Qua Sec Acc Com Machines Disabled 54 | . 1 2 . 2 5 1 . . . . 5 . . . . 14 . . . . 2 . . . . 4 6 . 4 1 5 2 . . Max in Single Turn 7 | . 1 1 . 1 1 1 . . . . 4 . . . . 7 . . . . 1 . . . . 1 4 . 1 1 1 2 . . Garrison Access 15 | . . . . 1 . 2 . . . . 2 . . . . 1 . . . . 1 . . . . . 2 3 . 1 1 . 1 . Network Hub 4 | . . . . . . . . . . . . . . . . . . . . . . . . . . . 4 . . . . . . . Machines Repaired . | . . . . . . . . . . . . . . . . . . . . . . . . . . . . . . . . . . . Machines Dismantled . | . . . . . . . . . . . . . . . . . . . . . . . . . . . . . . . . . . . Machines Sabotaged 2 | . . . . . . . . . . . . . . . . . . . . . . . . . . . 2 . . . . . . . Overloaded Fab Kills . | . . . . . . . . . . . . . . . . . . . . . . . . . . . . . . . . . . . Hacking | -11 -10 -9 -9 -8 -8 -7 -7 -7 -7 -6 -6 -6 -6 -6 -5 -5 -5 -5 -5 -4 -4 -4 -4 -4 -4 -4 -4 -3 -3 -2 -2 -2 -1 -1 --------- Run | Yrd Mat Mat Min Mat Sto Fac Low Low Dat Pro Fac Low Low Zio Pro Fac Upp Upp Zhi Pro Fac Was Fac Ext Cet Arc Hub Res Tes Res Qua Sec Acc Com Machines Accessed 181 | . 7 4 . 8 11 21 1 . 3 . 16 1 . . . 22 1 1 4 . 9 . 7 8 1 . 7 16 7 5 4 6 5 6 Terminals 102 | . 5 4 . 5 8 8 . . . . 9 1 . . . 11 . . . . 2 . 5 7 1 . 6 8 6 3 2 5 1 5 Fabricators 20 | . . . . . . 2 . . . . 3 . . . . 5 . . . . 2 . 1 . . . . 2 1 1 . . 3 . Repair Stations 22 | . 1 . . 2 2 5 . . . . . . . . . 4 . . . . 4 . . . . . . 1 . . 1 1 . 1 Recycling Units 11 | . 1 . . . 1 3 . . . . 1 . . . . 1 . . . . . . 1 1 . . . 2 . . . . . . Scanalyzers 1 | . . . . . . . . . . . 1 . . . . . . . . . . . . . . . . . . . . . . . Garrison Access 15 | . . . . 1 . 3 . . . . 2 . . . . 1 . . . . 1 . . . . . 1 3 . 1 1 . 1 . Total Hacks 665 | . 15 19 . 19 31 64 1 . 16 . 54 1 . . . 67 1 1 14 . 52 . 41 24 2 . 14 80 36 32 12 24 17 28 Successful 424 | . 12 12 . 9 24 43 1 . 16 . 33 1 . . . 46 1 1 14 . 37 . 22 12 1 . 10 51 25 21 9 5 7 11 Failed 237 | . 2 7 . 10 7 21 . . . . 21 . . . . 20 . . . . 15 . 18 12 1 . 4 28 11 11 3 19 10 17 Catastrophic 27 | . . 1 . 3 1 1 . . . . 1 . . . . 5 . . . . . . 2 1 . . . 7 . 1 . 3 1 . Database Lockouts 4 | . 1 . . . . . . . . . . . . . . 1 . . . . . . 1 . . . . 1 . . . . . . Manual 285 | . 8 16 . 10 14 28 . . . . 24 . . . . 24 . . . . 28 . 27 14 2 . 11 26 14 18 4 10 5 2 Terminals 434 | . 12 19 . 12 24 32 . . . . 37 1 . . . 36 . . . . 30 . 32 23 2 . 13 52 31 28 7 20 1 22 Fabricators 71 | . . . . . . 5 . . . . 9 . . . . 15 . . . . 7 . 6 . . . . 6 5 3 . . 15 . Repair Stations 79 | . 2 . . 6 5 14 . . . . . . . . . 12 . . . . 14 . . . . . . 14 . . 2 4 . 6 Recycling Units 25 | . 1 . . . 2 8 . . . . 2 . . . . 3 . . . . . . 3 1 . . . 5 . . . . . . Scanalyzers 2 | . . . . . . . . . . . 2 . . . . . . . . . . . . . . . . . . . . . . . Garrison Access 21 | . . . . 1 . 5 . . . . 4 . . . . 1 . . . . 1 . . . . . 1 3 . 1 3 . 1 . Terminal Hacks 234 | . 6 9 . 2 15 14 1 . 16 . 17 1 . . . 19 1 1 14 . 17 . 13 7 1 . 2 26 20 15 5 3 . 9 Record 18 | . . . . 1 . . . . 11 . . 1 . . . . . . 5 . . . . . . . . . . . . . . . Part Schematic 27 | . 1 1 . 1 4 1 . . 2 . 4 . . . . 3 . . 1 . 1 . 1 2 . . . 3 1 1 . . . . Robot Schematic 1 | . . . . . . . . . . . 1 . . . . . . . . . . . . . . . . . . . . . . . Robot Analysis 14 | . 1 5 . . . 2 . . . . 1 . . . . 1 . . 4 . . . . . . . . . . . . . . . Prototype ID Bank 17 | . 1 1 . . . 2 . . 3 . . . . . . 1 . . 4 . . . . . . . . 1 3 1 . . . . Open Door 10 | . . . . . 3 . 1 . . . . . . . . . 1 1 . . . . . . 1 . . . 1 . 1 . . 1 Level Access Points 3 | . . . . . 1 . . . . . . . . . . . . . . . . . . . . . . . 1 . . . . 1 Branch Access Points 10 | . . . . . . 1 . . . . 1 . . . . 2 . . . . 2 . 1 . . . . 1 . 2 . . . . Emergency Access Points 3 | . . . . . . . . . . . . . . . . . . . . . . . . . . . . . 2 . . . . 1 Machine Index 2 | . . . . . . 1 . . . . . . . . . . . . . . . . . . . . . . . . . . . 1 Terminal Index 14 | . . 1 . . 1 . . . . . 1 . . . . 1 . . . . 1 . 1 1 . . 1 1 1 1 1 1 . 1 Fabricator Index 8 | . . . . . . . . . . . 1 . . . . 1 . . . . 2 . 1 . . . . 1 1 1 . . . . Repair Station Index 8 | . . . . . . . . . . . . . . . . 1 . . . . 2 . 2 . . . . . 1 1 1 . . . Scanalyzer Index 3 | . . . . . . . . . . . . . . . . 1 . . . . . . . . . . . . 2 . . . . . Garrison Index 2 | . . . . . . . . . . . . . . . . . . . . . . . . . . . . 1 . . . . . 1 Alert Level 14 | . . . . . 1 1 . . . . . . . . . 1 . . . . 1 . . 2 . . . 5 . 1 . 1 . 1 Unreport Threat 22 | . 1 . . . 3 2 . . . . 4 . . . . 1 . . . . 4 . . . . . . 5 . 2 . . . . Locate Traps 11 | . 1 . . . . 1 . . . . 1 . . . . 2 . . . . 1 . 1 1 . . . . . 1 1 . . 1 Disarm Traps 1 | . . . . . . . . . . . . . . . . . . . . . . . . . . . . 1 . . . . . . Dispatch Records 2 | . . . . . . . . . . . 1 . . . . . . . . . . . . . . . . 1 . . . . . . Patrol Status 1 | . . . . . . . . . . . . . . . . . . . . . . . . 1 . . . . . . . . . . Recall Investigation 3 | . . . . . . . . . . . . . . . . . . . . . . . 1 . . . . 2 . . . . . . Recall Extermination 2 | . . . . . . 1 . . . . . . . . . . . . . . . . 1 . . . . . . . . . . . Recall Reinforcements 3 | . . . . . . . . . . . 1 . . . . . . . . . . . 1 . . . . . . . . 1 . . Recall Assault 1 | . . . . . . . . . . . . . . . . . . . . . . . . . . . . 1 . . . . . . Hauler Manifests 13 | . . 1 . . 1 1 . . . . 1 . . . . 2 . . . . 1 . 1 . . . 1 1 1 1 1 . . . Registered Components 8 | . . . . . . 1 . . . . . . . . . 1 . . . . 1 . 1 . . . . 1 1 1 . . . 1 Registered Prototypes 5 | . . . . . . . . . . . . . . . . . . . . . 1 . 1 . . . . 1 1 1 . . . . Zone Layout 4 | . 1 . . . 1 . . . . . . . . . . 1 . . . . . . . . . . . . . 1 . . . . Protovariant Controls 4 | . . . . . . . . . . . . . . . . . . . . . . . . . . . . . 4 . . . . . Fabricator Hacks 37 | . . . . . . 4 . . . . 5 . . . . 10 . . . . 3 . 2 . . . . 4 2 2 . . 5 . Network Status 1 | . . . . . . . . . . . 1 . . . . . . . . . . . . . . . . . . . . . . . Load Schematic 20 | . . . . . . 2 . . . . 3 . . . . 5 . . . . 2 . 1 . . . . 2 1 1 . . 3 . Build 16 | . . . . . . 2 . . . . 1 . . . . 5 . . . . 1 . 1 . . . . 2 1 1 . . 2 . Repair Station Hacks 57 | . 2 . . 3 4 11 . . . . . . . . . 9 . . . . 12 . . . . . . 10 . . 2 2 . 2 Scan Component 24 | . 1 . . 1 2 6 . . . . . . . . . 3 . . . . 5 . . . . . . 4 . . . 1 . 1 Repair 20 | . 1 . . 1 1 5 . . . . . . . . . 3 . . . . 4 . . . . . . 4 . . . 1 . . Refit 13 | . . . . 1 1 . . . . . . . . . . 3 . . . . 3 . . . . . . 2 . . 2 . . 1 Recycling Unit Hacks 10 | . 1 . . . 1 3 . . . . 1 . . . . . . . . . . . 1 1 . . . 2 . . . . . . Retrieve Components 10 | . 1 . . . 1 3 . . . . 1 . . . . . . . . . . . 1 1 . . . 2 . . . . . . Scanalyzer 2 | . . . . . . . . . . . 2 . . . . . . . . . . . . . . . . . . . . . . . Insert Component 1 | . . . . . . . . . . . 1 . . . . . . . . . . . . . . . . . . . . . . . Analyze 1 | . . . . . . . . . . . 1 . . . . . . . . . . . . . . . . . . . . . . . Garrison Access Hacks 14 | . . . . 1 . 2 . . . . 2 . . . . 1 . . . . 1 . . . . . 1 3 . 1 1 . 1 . Seal Access 14 | . . . . 1 . 2 . . . . 2 . . . . 1 . . . . 1 . . . . . 1 3 . 1 1 . 1 . Unauthorized Hacks 70 | . 3 3 . 3 4 9 . . . . 6 . . . . 7 . . . . 4 . 6 4 . . 7 6 3 3 1 . 1 . Terminals 47 | . 3 3 . 3 3 4 . . . . 4 . . . . 3 . . . . 3 . 3 4 . . 7 2 2 2 1 . . . Assimilate 6 | . . . . . . 1 . . . . 1 . . . . 1 . . . . . . 1 . . . . 1 1 . . . . . Botnet 27 | . 2 2 . 2 2 2 . . . . 2 . . . . 2 . . . . 2 . 2 3 . . 2 1 1 1 1 . . . Operators 10 | . 1 1 . 1 1 1 . . . . 1 . . . . . . . . . 1 . . 1 . . 1 . . 1 . . . . Sabotage 4 | . . . . . . . . . . . . . . . . . . . . . . . . . . . 4 . . . . . . . Fabricators 13 | . . . . . . 1 . . . . 1 . . . . 4 . . . . 1 . 1 . . . . 2 1 1 . . 1 . Prioritize 13 | . . . . . . 1 . . . . 1 . . . . 4 . . . . 1 . 1 . . . . 2 1 1 . . 1 . Repair Stations . | . . . . . . . . . . . . . . . . . . . . . . . . . . . . . . . . . . . Recycling Units 10 | . . . . . 1 4 . . . . 1 . . . . . . . . . . . 2 . . . . 2 . . . . . . Reject 6 | . . . . . 1 2 . . . . 1 . . . . . . . . . . . 1 . . . . 1 . . . . . . Recyclers 3 | . . . . . . 1 . . . . . . . . . . . . . . . . 1 . . . . 1 . . . . . . Mask 1 | . . . . . . 1 . . . . . . . . . . . . . . . . . . . . . . . . . . . . Scanalyzers . | . . . . . . . . . . . . . . . . . . . . . . . . . . . . . . . . . . . Garrison Access . | . . . . . . . . . . . . . . . . . . . . . . . . . . . . . . . . . . . Data Cores Recovered . | . . . . . . . . . . . . . . . . . . . . . . . . . . . . . . . . . . . Used . | . . . . . . . . . . . . . . . . . . . . . . . . . . . . . . . . . . . Hacking Detections 128 | . 5 4 . 6 8 17 . . . . 15 1 . . . 21 . . . . 8 . 6 5 1 . 2 8 2 3 2 5 4 5 Full Trace Events 55 | . 1 1 . 3 3 9 . . . . 8 . . . . 14 . . . . 4 . 4 . . . . 3 1 1 . . 3 . Feedback Events 8 | . . 1 . . 1 1 . . . . 2 . . . . 1 . . . . 2 . . . . . . . . . . . . . Corruption 6 | . . 1 . . 1 1 . . . . 1 . . . . 1 . . . . 1 . . . . . . . . . . . . . Hackware Fried 2 | . . . . . . . . . . . 1 . . . . . . . . . 1 . . . . . . . . . . . . . Feedback Blocked 1 | . . . . . . . . . . . . . . . . . . . . . . . . . . . . 1 . . . . . . Robot Schematics Acquired 6 | . . . . . . . . . . . 1 . . 2 . . . . . . . . . . . . . . 3 . . . . . Robots Built . | . . . . . . . . . . . . . . . . . . . . . . . . . . . . . . . . . . . Authchips . | . . . . . . . . . . . . . . . . . . . . . . . . . . . . . . . . . . . Time . | . . . . . . . . . . . . . . . . . . . . . . . . . . . . . . . . . . . Total Robot Build Rating . | . . . . . . . . . . . . . . . . . . . . . . . . . . . . . . . . . . . Part Schematics Acquired 46 | . 1 1 . 1 4 1 . . 2 . 5 . . 14 . 2 . . 1 . 1 . 1 2 . . . 3 4 1 2 . . . Parts Built 17 | . . . . . . 3 . . . . 1 . . . . 6 . . . . 1 . 1 . . . . 2 . 1 . . 2 . Authchips . | . . . . . . . . . . . . . . . . . . . . . . . . . . . . . . . . . . . Time 633 | . . . . . . 51 . . . . 53 . . . . 190 . . . . 23 . 38 . . . . 140 25 38 . . 75 . Total Part Build Rating 80 | . . . . . . 8 . . . . 6 . . . . 28 . . . . 5 . 5 . . . . 13 . 5 . . 10 . Parts Repaired 20 | . 1 . . 1 1 5 . . . . . . . . . 3 . . . . 4 . . . . . . 4 . . . 1 . . Time 578 | . 38 . . 26 26 155 . . . . . . . . . 90 . . . . 122 . . . . . . 85 . . . 36 . . Parts Recycled . | . . . . . . . . . . . . . . . . . . . . . . . . . . . . . . . . . . . Recycled Matter . | . . . . . . . . . . . . . . . . . . . . . . . . . . . . . . . . . . . Retrieved Matter . | . . . . . . . . . . . . . . . . . . . . . . . . . . . . . . . . . . . Retrieved Components 34 | . 9 . . . 3 5 . . . . 10 . . . . . . . . . . . 1 3 . . . 3 . . . . . . Parts Scanalyzed 1 | . . . . . . . . . . . 1 . . . . . . . . . . . . . . . . . . . . . . . Part Schematics Acquired 1 | . . . . . . . . . . . 1 . . . . . . . . . . . . . . . . . . . . . . . Parts Damaged . | . . . . . . . . . . . . . . . . . . . . . . . . . . . . . . . . . . . Bothacking | -11 -10 -9 -9 -8 -8 -7 -7 -7 -7 -6 -6 -6 -6 -6 -5 -5 -5 -5 -5 -4 -4 -4 -4 -4 -4 -4 -4 -3 -3 -2 -2 -2 -1 -1 ------------ Run | Yrd Mat Mat Min Mat Sto Fac Low Low Dat Pro Fac Low Low Zio Pro Fac Upp Upp Zhi Pro Fac Was Fac Ext Cet Arc Hub Res Tes Res Qua Sec Acc Com Used RIF Installer . | . . . . . . . . . . . . . . . . . . . . . . . . . . . . . . . . . . . Robots Hacked 1 | . . . . . . . . . . . . . . . . . . . . . . . . . . . . . . . . . . 1 Non-combat . | . . . . . . . . . . . . . . . . . . . . . . . . . . . . . . . . . . . Combat 1 | . . . . . . . . . . . . . . . . . . . . . . . . . . . . . . . . . . 1 Robot Hacks Applied 1 | . . . . . . . . . . . . . . . . . . . . . . . . . . . . . . . . . . 1 parse_system 1 | . . . . . . . . . . . . . . . . . . . . . . . . . . . . . . . . . . 1 Manual 1 | . . . . . . . . . . . . . . . . . . . . . . . . . . . . . . . . . . 1 Relay Couplers Released 3 | . . . . . . . . . . . . . . . . . . . . . . . . . . . 3 . . . . . . . Machine Destruction 3 | . . . . . . . . . . . . . . . . . . . . . . . . . . . 3 . . . . . . . Fabnet Peak Effective % . | . . . . . . . . . . . . . . . . . . . . . . . . . . . . . . . . . . . Robots Rewired 14 | . . . . . . . . . . . . . . . . . . . . . . . . 14 . . . . . . . . . . Allies Hacked . | . . . . . . . . . . . . . . . . . . . . . . . . . . . . . . . . . . . Hacks Repelled . | . . . . . . . . . . . . . . . . . . . . . . . . . . . . . . . . . . . Allies | -11 -10 -9 -9 -8 -8 -7 -7 -7 -7 -6 -6 -6 -6 -6 -5 -5 -5 -5 -5 -4 -4 -4 -4 -4 -4 -4 -4 -3 -3 -2 -2 -2 -1 -1 -------- Run | Yrd Mat Mat Min Mat Sto Fac Low Low Dat Pro Fac Low Low Zio Pro Fac Upp Upp Zhi Pro Fac Was Fac Ext Cet Arc Hub Res Tes Res Qua Sec Acc Com Total Allies 40 | . . . . . 1 1 . . . . 1 . . 3 . 1 . . . . . . 1 20 7 . 1 . 1 . . . 3 . Largest Group 12 | . . . . . 1 1 . . . . 1 . . 3 3 1 . . . . . . 1 10 12 9 5 . 1 . . . 3 . Highest-Rated Group 994 | . . . . . 100 10 . . . . 26 . . 87 87 26 . . . . . . 10 453 994 750 416 . 10 . . . 379 . Highest-Rated Ally 159 | . . . . . 100 10 . . . . 26 . . 31 31 26 . . . . . . 10 159 159 159 96 . 10 . . . 135 . Total Orders 3 | . . . . . . . . . . . . . . . . . . . . . . . 2 . . . 1 . . . . . . . STAY 2 | . . . . . . . . . . . . . . . . . . . . . . . 1 . . . 1 . . . . . . . FOLLOW 1 | . . . . . . . . . . . . . . . . . . . . . . . 1 . . . . . . . . . . . Ally Attacks 269 | . . . . . 29 . . . . . . . . . 6 . . . . . . . . 84 59 36 48 . . . . . 7 . Total Damage 10745 | . . . . . 1819 . . . . . . . . . 108 . . . . . . . . 3132 2456 1310 1708 . . . . . 212 . Kills 65 | . . . . . 21 . . . . . . . . . 2 . . . . . . . . 17 9 5 9 . . . . . 2 . Allies Corrupted . | . . . . . . . . . . . . . . . . . . . . . . . . . . . . . . . . . . . Allies Melted 1 | . . . . . . . . . . . . . . . . . . . . . . . . 1 . . . . . . . . . . Intel | -11 -10 -9 -9 -8 -8 -7 -7 -7 -7 -6 -6 -6 -6 -6 -5 -5 -5 -5 -5 -4 -4 -4 -4 -4 -4 -4 -4 -3 -3 -2 -2 -2 -1 -1 ------- Run | Yrd Mat Mat Min Mat Sto Fac Low Low Dat Pro Fac Low Low Zio Pro Fac Upp Upp Zhi Pro Fac Was Fac Ext Cet Arc Hub Res Tes Res Qua Sec Acc Com Robot Analysis Total 14 | . 1 5 . . . 2 . . . . 1 . . . . 1 . . 4 . . . . . . . . . . . . . . . Derelict Logs Recovered 16 | . . . . . . . . 2 . 2 . 1 3 . 2 . 2 2 . 2 . . . . . . . . . . . . . . Drone Launches . | . . . . . . . . . . . . . . . . . . . . . . . . . . . . . . . . . . . Drone Recoveries . | . . . . . . . . . . . . . . . . . . . . . . . . . . . . . . . . . . . Exploration | -11 -10 -9 -9 -8 -8 -7 -7 -7 -7 -6 -6 -6 -6 -6 -5 -5 -5 -5 -5 -4 -4 -4 -4 -4 -4 -4 -4 -3 -3 -2 -2 -2 -1 -1 ------------- Run | Yrd Mat Mat Min Mat Sto Fac Low Low Dat Pro Fac Low Low Zio Pro Fac Upp Upp Zhi Pro Fac Was Fac Ext Cet Arc Hub Res Tes Res Qua Sec Acc Com Turns Passed 15644 | 62 1495 851 174 1763 312 991 135 160 40 195 883 131 147 390 163 970 110 161 70 151 769 24 579 1712 348 164 389 708 247 250 393 155 229 323 Spaces Moved 23738 | 36 624 275 47 507 622 1830 366 399 144 517 1980 460 544 1006 517 1809 464 615 165 544 1310 89 1012 1352 330 121 789 1467 539 722 917 282 549 788 Core 19 | 6 . . . . . . . . . . 4 . . . . . . . . . . . . . . . 3 . . . 2 . . 4 Treads 1558 | 30 339 275 47 506 . . . . . . . . . . . . . . . . . . . 361 . . . . . . . . . . Legs . | . . . . . . . . . . . . . . . . . . . . . . . . . . . . . . . . . . . Wheels 285 | . 285 . . . . . . . . . . . . . . . . . . . . . . . . . . . . . . . . . Hover . | . . . . . . . . . . . . . . . . . . . . . . . . . . . . . . . . . . . Flight 21876 | . . . . 1 622 1830 366 399 144 517 1976 460 544 1006 517 1809 464 615 165 544 1310 89 1012 991 330 121 786 1467 539 722 915 282 549 784 Fastest Speed 15 | 50 160 240 240 240 26 26 26 26 26 26 26 26 26 26 26 20 23 20 23 20 17 23 17 17 23 26 15 20 15 18 23 29 29 29 Average Speed 41 | 143 180 240 240 240 26 26 26 26 26 26 26 26 26 26 26 23 23 22 23 22 22 23 22 93 29 26 38 20 20 23 27 30 29 32 Slowest Speed 700 | 160 480 240 240 336 29 26 26 26 26 26 250 26 26 26 26 26 23 23 23 23 23 23 23 480 96 26 400 24 94 25 700 105 29 250 Overloaded Moves 297 | . . . . . . . . . . . . . . . . 30 . 33 . 5 60 . 3 27 . . 51 . 49 39 . . . . Propulsion Burnouts . | . . . . . . . . . . . . . . . . . . . . . . . . . . . . . . . . . . . Robots Hopped 134 | . . . . . 8 13 . . . . 14 . . . . 9 . . . . 3 . 14 17 . . 4 5 12 6 11 10 1 7 Cave-ins Triggered 1 | . . . . . . . . . . . . . . . . . . . . . . . . . . . . . . . . . . 1 Teleports 1 | . . . . . . . . . . . . . . . . . . . . . . . . . . . . . 1 . . . . . Exploration Rate (%) 55 | 3 97 32 9 43 69 43 56 64 74 70 47 76 76 81 71 51 64 80 63 72 30 83 25 91 78 87 40 45 63 24 73 18 10 30 Regions Visited 34 Branch Regions 22 Pre-discovered Areas 9 | . . . . . . . . 2 1 1 . . . 2 . . . . 3 . . . . . . . . . . . . . . . Known Exits Taken 27 | . . . . . 1 1 1 1 1 1 1 1 1 1 1 1 1 1 1 1 . . 1 1 1 1 1 1 1 1 1 1 1 . Unknown Exits Taken 5 | 1 1 1 1 1 . . . . . . . . . . . . . . . . . . . . . . . . . . . . . . Scrap Searched 26 | . . . 1 . . . 2 6 . 3 . 2 2 3 2 . 1 2 . 2 . . . . . . . . . . . . . . Spaces Dug 282 | . . . . . . 39 . 3 . . 51 . 2 . . 83 . 2 . . 17 . 21 . . . 7 16 3 22 4 1 1 10 Terrain Destroyed 796 | . 16 13 . 39 9 70 55 3 . 21 72 . 2 . . 166 . 2 . . 53 . 21 . . 9 167 16 14 22 4 11 1 10 Melee 160 | . . . . . . 39 . 3 . . 21 . 2 . . 24 . 2 . . 17 . 21 . . . . 16 3 12 . . . . Projectile 53 | . . . . 6 . . . . . . . . . . . . . . . . . . . . . 9 12 . . . 4 11 1 10 AOE 583 | . 16 13 . 33 9 31 55 . . 21 51 . . . . 142 . . . . 36 . . . . . 155 . 11 10 . . . . Terrain Rammed . | . . . . . . . . . . . . . . . . . . . . . . . . . . . . . . . . . . . Walls Destroyed . | . . . . . . . . . . . . . . . . . . . . . . . . . . . . . . . . . . . Machines Disabled . | . . . . . . . . . . . . . . . . . . . . . . . . . . . . . . . . . . . Actions | -11 -10 -9 -9 -8 -8 -7 -7 -7 -7 -6 -6 -6 -6 -6 -5 -5 -5 -5 -5 -4 -4 -4 -4 -4 -4 -4 -4 -3 -3 -2 -2 -2 -1 -1 --------- Run | Yrd Mat Mat Min Mat Sto Fac Low Low Dat Pro Fac Low Low Zio Pro Fac Upp Upp Zhi Pro Fac Was Fac Ext Cet Arc Hub Res Tes Res Qua Sec Acc Com Total 28114 | 44 851 382 72 821 717 2226 397 450 145 572 2219 470 545 1132 544 2244 466 631 187 566 1722 91 1287 1711 567 216 848 1822 637 758 993 337 613 831 Wait 2729 | . 89 19 . 70 54 297 17 49 . 51 147 6 . 114 26 304 . 15 . 21 282 3 243 177 219 52 25 276 52 12 16 35 54 4 Move 23449 | 35 623 274 46 506 607 1804 365 398 143 516 1952 459 543 1005 516 1790 463 614 164 543 1304 88 984 1320 329 120 780 1456 516 710 894 262 546 774 Hop 122 | . . . . . 6 12 . . . . 13 . . . . 9 . . . . 3 . 13 14 . . 4 5 10 5 11 9 1 7 Pick Up 139 | 3 29 8 1 16 4 9 . . . . 8 1 . 1 . 10 . . 1 . 8 . 2 8 1 . 2 9 3 2 6 4 1 2 Fast Attach 191 | 6 7 7 . 15 6 3 3 . 1 . 9 1 . 5 . 12 1 . 8 . 9 . 2 13 5 3 5 18 14 4 12 2 7 13 Attach 100 | . 3 4 . 17 1 6 . . . . 6 . . . . 9 1 . . . 3 . . 10 1 1 2 5 7 2 8 8 1 5 Detach 49 | . 2 . . 3 . 2 . . . . 3 . . . . 6 1 . . . 1 . . 9 . 1 . 3 3 1 5 3 2 4 Swap 135 | . 6 7 2 7 2 22 3 . . 2 7 1 . . 1 20 . . . . 11 . 7 18 1 2 1 6 1 . 3 3 . 2 Drop 228 | . 14 18 2 38 9 5 3 . 1 . 6 2 . 6 1 14 . . 8 . 11 . 2 15 4 2 3 23 14 2 12 6 . 7 Fire 432 | . 76 44 21 145 1 5 6 . . 3 2 . . . . 6 . . . . 3 . . 34 . 35 20 . 2 4 6 5 1 13 Melee 402 | . . . . . 27 61 . 3 . . 66 . 2 1 . 64 . 2 6 2 33 . 33 22 7 . 6 21 10 16 20 . . . Ram 1 | . . . . . . . . . . . . . . . . . . . . . . . 1 . . . . . . . . . . . Kick . | . . . . . . . . . . . . . . . . . . . . . . . . . . . . . . . . . . . Crush 7 | . 2 1 . 4 . . . . . . . . . . . . . . . . . . . . . . . . . . . . . . Escape Stasis 61 | . . . . . . . . . . . . . . . . . . . . . 54 . . 2 . . . . 5 . . . . . Rewire 69 | . . . . . . . . . . . . . . . . . . . . . . . . 69 . . . . . . . . . . Trap . | . . . . . . . . . . . . . . . . . . . . . . . . . . . . . . . . . . . Miscellaneous . | . . . . . . . . . . . . . . . . . . . . . . . . . . . . . . . . . . . Route ------- -11/Scrapyard -10/Materials (discovered 4 exits: *Mat x3 / [*Min]) -9/Materials (discovered 2 exits: [*Min x2]) -9/Mines -8/Materials -8/Storage -7/Factory (discovered 3 exits: *Fac / *Low x2) -7/Lower Caves -7/Lower Caves (discovered 2 exits: *Fac / *Dat) -7/Data Miner -6/Proximity Caves -6/Factory (discovered 2 exits: *Low x2) -6/Lower Caves -6/Lower Caves (discovered 2 exits: *Fac / *Zio) -6/Zion -5/Proximity Caves -5/Factory (discovered 5 exits: *Fac x3 / *Upp x2) -5/Upper Caves -5/Upper Caves (discovered 2 exits: *Fac / *Zhi) -5/Zhirov -4/Proximity Caves -4/Factory (discovered 7 exits: Res x2 / Upp x2 / Ext x2 / *Arm) -4/Waste -4/Factory (discovered 5 exits: Upp x2 / *Ext x2 / Arm) -4/Extension (discovered 2 exits: *Res / *Cet) -4/Cetus (discovered 2 exits: *Res / *Arc) -4/Archives (discovered 3 exits: *Res / *Hub x2) -4/Hub_04(d) (discovered 2 exits: *Res x2) -3/Research (discovered 2 exits: *Tes x2) -3/Testing -2/Research (discovered 2 exits: *Qua x2) -2/Quarantine -2/Section 7 -1/Access (discovered 2 exits: Sur / *Com) -1/Command (discovered 2 exits: Sur x2) History --------- Turn | Location | Event 20 | -11/Scrapyard | Discovered new exit (range 14) 63 | -11/Scrapyard | Entered Materials 301 | -10/Materials | Build established: Mutant 467 | -10/Materials | Central database locked down 467 | -10/Materials | Discovered new exit (range 17) 560 | -10/Materials | Repaired Lgt. Nuclear Core 753 | -10/Materials | Discovered new exit (range 15) 943 | -10/Materials | Discovered new exit (range 12) 1003 | -10/Materials | Core integrity fell below 50% 1410 | -10/Materials | Discovered new exit (range 12) 1558 | -10/Materials | Entered another Materials area 1558 | -9/Materials | Evolved 2 slots: Propulsion x1, Utility x1 2011 | -9/Materials | Discovered new exit (range 12) 2174 | -9/Materials | Discovered new exit (range 4) 2409 | -9/Materials | Entered Mines 2410 | -9/Mines | Assembled infested the area 2512 | -9/Mines | Discovered new exit (range 5) 2527 | -9/Mines | Joined a pair of Derelicts in attacking an 0b10 outpost 2583 | -9/Mines | Entered Materials 2583 | -8/Materials | Evolved 2 slots: Propulsion x1, Utility x1 2937 | -8/Materials | Lost 5 parts (3n1u1w) 3251 | -8/Materials | Build established: Scavenger-Mutant 3419 | -8/Materials | Repaired Lgt. Treads 3431 | -8/Materials | Discovered new exit (range 14) 3922 | -8/Materials | Garrison activated, responded to threat 4183 | -8/Materials | First assault squad dispatched 4346 | -8/Materials | Entered Storage 4392 | -8/Storage | Repaired Huge Storage Unit 4402 | -8/Storage | Identified exit to Factory 4502 | -8/Storage | Met 01-MTF 4604 | -8/Storage | Garrison activated, responded to threat 4616 | -8/Storage | Build established: Hacker-Sprinter 4658 | -8/Storage | Entered Factory 4658 | -7/Factory | Evolved 2 slots: Utility x2 4731 | -7/Factory | Identified exit to Lower Caves 4799 | -7/Factory | Discovered new exit (range 6) 4802 | -7/Factory | Identified exit to Factory 4858 | -7/Factory | Repaired Imp. Propulsion Shielding? 4946 | -7/Factory | Repaired Imp. VTOL Module? 4961 | -7/Factory | Repaired Scythe 5280 | -7/Factory | Fabricated Imp. Utility Shielding (x2) 5336 | -7/Factory | Repaired Mni. Grenade Launcher? 5458 | -7/Factory | Search patrols dispatched 5518 | -7/Factory | Repaired Enh. Optical Array 5642 | -7/Factory | Fabricated Mni. Grenade Launcher (x1) 5649 | -7/Factory | Entered Lower Caves 5660 | -7/Lower Caves | Encountered a Warlord checkpoint 5782 | -7/Lower Caves | Discovered new exit (range 6) 5784 | -7/Lower Caves | Identified exit to Lower Caves 5784 | -7/Lower Caves | Entered another Lower Caves area 5799 | -7/Lower Caves | Discovered exit to Factory (range 12) 5914 | -7/Lower Caves | Spotted B-75 Beast 5922 | -7/Lower Caves | Learned location of Extension (-4) 5943 | -7/Lower Caves | Discovered new exit (range 7) 5944 | -7/Lower Caves | Identified exit to Data Miner 5944 | -7/Lower Caves | Entered Data Miner 5944 | -7/Data Miner | Discovered new exit (range 6) 5946 | -7/Data Miner | Identified exit to Proximity Caves 5950 | -7/Data Miner | Met Data Miner 5955 | -7/Data Miner | Learned location of Section 7 (-2) 5955 | -7/Data Miner | Acquired the access code to Warlord's prototype stash 5959 | -7/Data Miner | Received God Mode back door access code from Data Miner 5984 | -7/Data Miner | Entered Proximity Caves 6047 | -6/Proximity Caves | Learned 8 Factory zone layouts 6061 | -6/Proximity Caves | Spotted B-75 Beast 6094 | -6/Proximity Caves | Spotter reported a threat 6176 | -6/Proximity Caves | Discovered exit to Factory (range 11) 6179 | -6/Proximity Caves | Entered Factory 6179 | -6/Factory | Evolved 2 slots: Utility x2 6529 | -6/Factory | Search patrols dispatched 6630 | -6/Factory | Imp. System Shield fried by hacking feedback 6677 | -6/Factory | Discovered new exit (range 20) 6720 | -6/Factory | Identified exit to Lower Caves 6851 | -6/Factory | Build established: Hacker-Scout 6935 | -6/Factory | Fabricated Adv. Hacking Suite? 7017 | -6/Factory | Lost 4 parts (1p2u1w) 7062 | -6/Factory | Entered Lower Caves 7094 | -6/Lower Caves | Encountered a Warlord checkpoint 7172 | -6/Lower Caves | Discovered new exit (range 6) 7173 | -6/Lower Caves | Identified exit to Lower Caves 7193 | -6/Lower Caves | Entered another Lower Caves area 7208 | -6/Lower Caves | Discovered new exit (range 6) 7209 | -6/Lower Caves | Identified exit to Factory 7212 | -6/Lower Caves | Learned Factory emergency access door positions 7327 | -6/Lower Caves | Discovered new exit (range 9) 7329 | -6/Lower Caves | Identified exit to Zion 7332 | -6/Lower Caves | Learned location of 1 exit from Factory 7340 | -6/Lower Caves | Entered Zion 7350 | -6/Zion | System corruption cleaned by Quarantine Array 7363 | -6/Zion | Discovered new exit (range 14) 7366 | -6/Zion | Identified exit to Proximity Caves 7421 | -6/Zion | Found Prototype Launcher 7421 | -6/Zion | Identified Gui. Missile Launcher 7456 | -6/Zion | Learned location of Quarantine (-2) 7475 | -6/Zion | Received a hallucinogenic algorithm 7497 | -6/Zion | Given A8's code to call for help 7514 | -6/Zion | Gained Derelict followers 7553 | -6/Zion | Found Prototype Device 7553 | -6/Zion | Identified Bomb Factory No. 2 7690 | -6/Zion | Found GAL Module 7730 | -6/Zion | Entered Proximity Caves 7730 | -5/Proximity Caves | Accompanied by 3 allies 7865 | -5/Proximity Caves | Spotted B-75 Beast 7877 | -5/Proximity Caves | Learned Factory stockpile data 7893 | -5/Proximity Caves | Entered Factory 7893 | -5/Factory | Evolved 2 slots: Power x1, Propulsion x1 7894 | -5/Factory | Identified exit to Upper Caves 7903 | -5/Factory | Discovered new exit (range 17) 7925 | -5/Factory | Identified exit to Factory 8010 | -5/Factory | Repaired Imp. VTOL Module 8144 | -5/Factory | Discovered exit to Factory (range 9) 8186 | -5/Factory | Repaired Imp. VTOL Module 8217 | -5/Factory | Repaired Imp. VTOL Module 8321 | -5/Factory | Fabricated Imp. Propulsion Shielding (x2) 8534 | -5/Factory | Spotted B-75 Beast 8557 | -5/Factory | Destroyed 8 combat bots 8561 | -5/Factory | Fabricated Exp. Propulsion Shielding? 8567 | -5/Factory | Discovered exit to Factory (range 4) 8590 | -5/Factory | Central database locked down 8702 | -5/Factory | Fabricated Exp. Propulsion Shielding (x1) 8717 | -5/Factory | Fabricated Adv. Hacking Suite? 8781 | -5/Factory | Fabricated Adv. System Shield (x1) 8793 | -5/Factory | First assault squad dispatched 8863 | -5/Factory | Entered Upper Caves 8926 | -5/Upper Caves | Learned Factory garrison access intel 8959 | -5/Upper Caves | Learned 4 Factory zone layouts 8961 | -5/Upper Caves | Encountered a Warlord checkpoint 8961 | -5/Upper Caves | Discovered new exit (range 12) 8964 | -5/Upper Caves | Identified exit to Upper Caves 8973 | -5/Upper Caves | Entered another Upper Caves area 8975 | -5/Upper Caves | Discovered exit to Factory (range 13) 8990 | -5/Upper Caves | Learned 4 Factory zone layouts 9036 | -5/Upper Caves | Spotted B-75 Beast 9108 | -5/Upper Caves | Attracted the attention of an 0b10 checkpoint 9124 | -5/Upper Caves | Encountered a Warlord checkpoint 9125 | -5/Upper Caves | Discovered new exit (range 12) 9134 | -5/Upper Caves | Identified exit to Zhirov 9134 | -5/Upper Caves | Entered Zhirov 9134 | -5/Zhirov | Discovered new exit (range 3) 9139 | -5/Zhirov | Met Zhirov 9143 | -5/Zhirov | Learned location of Testing (-3) 9143 | -5/Zhirov | Learned location of Command (-1) 9147 | -5/Zhirov | Zhirov requested help retrieving the SGEMP Prototype 9151 | -5/Zhirov | Found Alien Artifact 9151 | -5/Zhirov | Identified Integrated Dissipator 9151 | -5/Zhirov | Installed Integrated Dissipator, increased core heat dissipation (+20) 9158 | -5/Zhirov | Found Alien Artifact 9204 | -5/Zhirov | Identified exit to Proximity Caves 9204 | -5/Zhirov | Entered Proximity Caves 9207 | -4/Proximity Caves | Spotter reported a threat 9214 | -4/Proximity Caves | Spotter reported a threat 9267 | -4/Proximity Caves | Learned Research non-interactive machine intel 9285 | -4/Proximity Caves | Learned Research stockpile data 9347 | -4/Proximity Caves | Discovered exit to Factory (range 7) 9355 | -4/Proximity Caves | Entered Factory 9355 | -4/Factory | Evolved 2 slots: Utility x2 9356 | -4/Factory | Identified exit to Research 9357 | -4/Factory | Loaded intel: 4 garrison access locations 9423 | -4/Factory | Repaired Exp. Propulsion Shielding 9437 | -4/Factory | Repaired Imp. Utility Shielding 9514 | -4/Factory | Repaired Cld. Nuclear Pulse Thruster 9559 | -4/Factory | Identified exit to Upper Caves 9559 | -4/Factory | Identified exit to Extension 9559 | -4/Factory | Identified exit to Armory 9738 | -4/Factory | Fabricated Stasis Canceller (x1) 9855 | -4/Factory | Search patrols dispatched 10035 | -4/Factory | Repaired Exp. Propulsion Shielding 10109 | -4/Factory | Adv. Hacking Suite fried by hacking feedback 10124 | -4/Factory | Sucked down chute 10124 | -4/Factory | Entered Waste 10124 | -4/Waste | Spotted C-40 Crusher 10126 | -4/Waste | Spotted C-40 Crusher 10133 | -4/Waste | Spotted C-40 Crusher 10139 | -4/Waste | EMP discharged 10139 | -4/Waste | Discovered new exit (range 22) 10139 | -4/Waste | Spotted C-40 Crusher 10139 | -4/Waste | Spotted C-40 Crusher 10140 | -4/Waste | Spotted C-40 Crusher 10148 | -4/Waste | Identified exit to Factory 10148 | -4/Waste | Entered Factory 10319 | -4/Factory | Discovered exit to Extension (range 4) 10398 | -4/Factory | Fabricated Exp. Utility Shielding? 10408 | -4/Factory | Central database locked down 10719 | -4/Factory | P-70 Sage assimilated allied Technician 7a 10727 | -4/Factory | Entered Extension 10783 | -4/Extension | Rescued a captive Derelict 10787 | -4/Extension | Rescued a captive Derelict 10844 | -4/Extension | Rescued a captive Derelict 10844 | -4/Extension | Rescued a captive Derelict 11092 | -4/Extension | Lost 5 allies 11310 | -4/Extension | Build established: Hacker-Skirmisher 11688 | -4/Extension | Spotted B-86 Titan 11910 | -4/Extension | Lost 5 parts (2p3n) 12125 | -4/Extension | Spotted B-86 Titan 12150 | -4/Extension | Discovered new exit (range 22) 12151 | -4/Extension | Discovered exit to Research (range 20) 12165 | -4/Extension | Rescued a captive Derelict 12191 | -4/Extension | Rescued A7 12345 | -4/Extension | Lost 3 allies 12411 | -4/Extension | Build established: Hacker-Scout 12425 | -4/Extension | Identified exit to Cetus 12439 | -4/Extension | Entered Cetus 12439 | -4/Cetus | Accompanied by 5 allies (A7) 12442 | -4/Cetus | Spotted Cetus Guard 12442 | -4/Cetus | Spotted Cetus Guard 12442 | -4/Cetus | Spotted Cetus Guard 12444 | -4/Cetus | Acquired a Cetus Manufacturing Module code from A7 12444 | -4/Cetus | Spotted Cetus Guard 12458 | -4/Cetus | Allies destroyed Cetus Guard 12466 | -4/Cetus | Allies destroyed Cetus Guard 12502 | -4/Cetus | Started Cetus Manufacturing Module 12527 | -4/Cetus | Manufactured an Enhanced Grunt 12552 | -4/Cetus | Manufactured an Enhanced Grunt 12569 | -4/Cetus | Escorted A7 to Cetus Mainframe 12577 | -4/Cetus | Manufactured an Enhanced Grunt 12602 | -4/Cetus | Manufactured an Enhanced Grunt 12627 | -4/Cetus | Manufactured an Enhanced Grunt 12636 | -4/Cetus | Enhanced Grunt warped into view, answering call for help 12639 | -4/Cetus | Enhanced Grunt warped into view, answering call for help 12639 | -4/Cetus | Discovered new exit (range 22) 12656 | -4/Cetus | Spotted Cetus Guard 12671 | -4/Cetus | Spotted Cetus Guard 12672 | -4/Cetus | Spotted Cetus Guard 12673 | -4/Cetus | Discovered exit to Research (range 22) 12677 | -4/Cetus | Spotted Cetus Guard 12687 | -4/Cetus | Found Prototype Device 12687 | -4/Cetus | Identified Exp. Thermal Shield 12694 | -4/Cetus | Allies destroyed Cetus Guard 12696 | -4/Cetus | Allies destroyed Cetus Guard 12697 | -4/Cetus | Allies destroyed Cetus Guard 12698 | -4/Cetus | Allies destroyed Cetus Guard 12708 | -4/Cetus | Met Revision 17 12739 | -4/Cetus | Identified exit to Archives 12787 | -4/Cetus | Entered Archives 12787 | -4/Archives | Accompanied by 9 allies (A7) 12792 | -4/Archives | Received a hacking code to weaken MAIN.C 12814 | -4/Archives | Core integrity fell below 50% 12851 | -4/Archives | Lost 3 allies 12861 | -4/Archives | Discovered new exit (range 22) 12866 | -4/Archives | Discovered new exit (range 22) 12890 | -4/Archives | Discovered exit to Research (range 22) 12918 | -4/Archives | Identified exit to Hub_04(d) 12951 | -4/Archives | Entered Hub_04(d) 12951 | -4/Hub_04(d) | Accompanied by 5 allies 12988 | -4/Hub_04(d) | Garrison activated, responded to threat 13012 | -4/Hub_04(d) | Discovered exit to Research (range 22) 13089 | -4/Hub_04(d) | Discovered exit to Research (range 5) 13201 | -4/Hub_04(d) | First assault squad dispatched 13285 | -4/Hub_04(d) | Network Hub disabled 13286 | -4/Hub_04(d) | Spotted Lightning 13287 | -4/Hub_04(d) | Spotted Lightning 13287 | -4/Hub_04(d) | Spotted Lightning 13288 | -4/Hub_04(d) | Spotted Lightning 13290 | -4/Hub_04(d) | Network Hub disabled 13292 | -4/Hub_04(d) | Spotted Lightning 13293 | -4/Hub_04(d) | Spotted Lightning 13293 | -4/Hub_04(d) | Spotted Lightning 13294 | -4/Hub_04(d) | Spotted Lightning 13298 | -4/Hub_04(d) | Network Hub disabled 13300 | -4/Hub_04(d) | Network Hub disabled 13331 | -4/Hub_04(d) | Lost 4 parts (2p1n1w) 13340 | -4/Hub_04(d) | Entered Research 13340 | -3/Research | Evolved 2 slots: Propulsion x1, Utility x1 13342 | -3/Research | Loaded intel: 86 non-interactive machine locations 13433 | -3/Research | Found Enh. Force Lance 13540 | -3/Research | Revision forces began assault on 0b10 13545 | -3/Research | Repaired Cld. Nuclear Pulse Thruster 13556 | -3/Research | Repaired VTOL Module 13584 | -3/Research | Repaired Exp. Utility Shielding 13586 | -3/Research | Met up with Revision 17++ 13631 | -3/Research | Fabricated Exp. Propulsion Shielding (x1) 13665 | -3/Research | Repaired Imp. VTOL Module 13680 | -3/Research | Found Prototype Processor 13682 | -3/Research | Identified Spectral Analyzer 13791 | -3/Research | Identified exit to Testing 13912 | -3/Research | Fabricated Imp. Diametric Drive (x1) 14017 | -3/Research | Central database locked down 14040 | -3/Research | Research terminal network offline 14048 | -3/Research | Entered Testing 14079 | -3/Testing | Found Prototype Protection 14079 | -3/Testing | Identified Hvy. Regenerative Plating 14083 | -3/Testing | Found Prototype Protection 14083 | -3/Testing | Identified SHELL Armor 14117 | -3/Testing | Protovariant out of control (PL-JWTARSTVIA) 14117 | -3/Testing | Unleashed a protovariant (PL-JWTARSTVIA) 14124 | -3/Testing | Found Prototype Energy Cannon 14124 | -3/Testing | Identified Potential Cannon 14126 | -3/Testing | Found Potential Cannon 14139 | -3/Testing | Garrison activated, responded to threat 14163 | -3/Testing | Protovariant out of control (PL-BDBVH5OS4R) 14163 | -3/Testing | Unleashed a protovariant (PL-BDBVH5OS4R) 14170 | -3/Testing | Identified exit to Research 14189 | -3/Testing | Found Prototype Energy Cannon 14189 | -3/Testing | Identified Cld. Nova Cannon 14192 | -3/Testing | Spotted PL-BDBVH5OS4R 14223 | -3/Testing | Build established: Hacker-Ninja 14242 | -3/Testing | Spotted Striker 14242 | -3/Testing | Spotted Striker 14254 | -3/Testing | Spotted Alpha 7 14255 | -3/Testing | Stole the SGEMP Prototype 14262 | -3/Testing | Spotted Investigator 14262 | -3/Testing | Scanned by Researcher 14267 | -3/Testing | Identified Transdimensional Reconstructor 14267 | -3/Testing | Warped through subspace 14295 | -3/Testing | Entered Research 14295 | -2/Research | Evolved 2 slots: Utility x1, Weapon x1 14299 | -2/Research | Lost 3 parts (1p1n1u) 14331 | -2/Research | Found Prototype Launcher 14331 | -2/Research | Identified Com. Tesla Bomb Launcher 14343 | -2/Research | Fabricated Exp. Propulsion Shielding (x1) 14358 | -2/Research | Identified exit to Quarantine 14415 | -2/Research | Spotted B-90 Cyclops 14444 | -2/Research | Spotted B-90 Cyclops 14543 | -2/Research | Spotted B-90 Cyclops 14545 | -2/Research | Entered Quarantine 14571 | -2/Quarantine | Found Alien Artifact 14576 | -2/Quarantine | Lost 3 parts (1p1n1u) 14587 | -2/Quarantine | Found Prototype Processor 14587 | -2/Quarantine | Identified Exp. Core Analyzer 14616 | -2/Quarantine | Found Alien Reactor 14616 | -2/Quarantine | Identified Matter Drive 14619 | -2/Quarantine | Garrison activated, responded to threat 14667 | -2/Quarantine | Found Alien Artifact 14685 | -2/Quarantine | Found Alien Energy Cannon 14685 | -2/Quarantine | Identified Core Cannon 14720 | -2/Quarantine | Identified Phase Armor 14735 | -2/Quarantine | Lost 3 parts (1n2u) 14795 | -2/Quarantine | Search patrols dispatched 14821 | -2/Quarantine | Met incapacitated Sigix Warrior 14821 | -2/Quarantine | Lockdown squad dispatched 14854 | -2/Quarantine | Spotted Lightning 14859 | -2/Quarantine | Spotted Lightning 14861 | -2/Quarantine | Spotted Lightning 14887 | -2/Quarantine | Found Alien Artifact 14887 | -2/Quarantine | Identified Subatomic Replicator 14888 | -2/Quarantine | Lost 3 parts (1n2u) 14916 | -2/Quarantine | Spotted Fortress 14936 | -2/Quarantine | Discovered new exit (range 6) 14938 | -2/Quarantine | Identified exit to Section 7 14938 | -2/Quarantine | Entered Section 7 14975 | -2/Section 7 | Build established: Hacker-Sprinter 15000 | -2/Section 7 | Used Subatomic Replicator to create Alien Artifact 15009 | -2/Section 7 | Spotted S7 Guard 15054 | -2/Section 7 | Identified Supercharged Integrated Reactor 15054 | -2/Section 7 | Installed Supercharged Integrated Reactor, increased core energy generation (+15) 15079 | -2/Section 7 | Repaired Imp. Diametric Drive 15089 | -2/Section 7 | Spotted B-90 Cyclops 15090 | -2/Section 7 | Discovered new exit (range 12) 15093 | -2/Section 7 | Identified exit to Access 15093 | -2/Section 7 | Entered Access 15093 | -1/Access | Evolved 2 slots: Utility x2 15094 | -1/Access | Delivered the SGEMP Prototype to Zhirov 15094 | -1/Access | Zhirov transferred Access data 15095 | -1/Access | Loaded intel: 104 machine locations 15095 | -1/Access | Loaded intel: 83 trap records 15095 | -1/Access | Identified exit to Surface 15095 | -1/Access | Discovered exit to Surface (range 232) 15095 | -1/Access | Identified exit to Command 15095 | -1/Access | Discovered exit to Command (range 125) 15115 | -1/Access | Lost 4 parts (1p1u2w) 15146 | -1/Access | Zhirov warped through subspace 15155 | -1/Access | Incoming investigation squad redirected 15157 | -1/Access | Fabricated Exp. Propulsion Shielding? 15199 | -1/Access | Incoming investigation squad redirected 15229 | -1/Access | Fabricated Exp. Utility Shielding (x1) 15322 | -1/Access | Entered Command 15420 | -1/Command | Found Prototype Device 15420 | -1/Command | Identified Thermal Barrier 15429 | -1/Command | Spotted B-99 Colossus 15443 | -1/Command | Build established: Hacker-Scout 15455 | -1/Command | Found Prototype Launcher 15455 | -1/Command | Identified Gui. Micro-nuke Launcher 15544 | -1/Command | Crushed by falling debris 15590 | -1/Command | Spotted M Guard 15590 | -1/Command | Spotted M Guard 15596 | -1/Command | Spotted Combat Programmer 15597 | -1/Command | Spotted Combat Programmer 15609 | -1/Command | Met MAIN.C 15609 | -1/Command | 0b10 Conduit disabled 15613 | -1/Command | Hacked MAIN.C using A7's code 15625 | -1/Command | System corruption reached 10% 15638 | -1/Command | Core integrity fell below 50% 15641 | -1/Command | Identified Terrabomb 15641 | -1/Command | Used Terrabomb 15642 | -1/Command | Core integrity fell below 20% 15645 | -1/Command | Destroyed by Combat Programmer with EMDS Last Messages --------------- Knocked back. Penetrated by EMDS Slug. Med. Storage Unit destroyed. Acquired Alien Artifact. Identified Terrabomb. Terrabomb activated. Penetrated by EMDS Slug. Slug penetrates Door Terminal. Door Terminal disabled. Penetrated by Slug. Knocked back. Penetrated by Slug. Penetrated by EMDS Slug. Knocked back. Combat Programmer repels hacking attempt. System corrupted: Component data lost. Penetrated by EMDS Slug. Remote Datajack destroyed. Penetrated by Slug. Penetrated by EMDS Slug. Map ----- +----------------------------------------------------+ | ?????????????????????????????????????????????????? | | ?????????????????????????????????????????????????? | | ?????????????????????????????????????????????????? | | ?????????????????????????????????????????????????? | | ?????????????????????????????????????????????????? | | ?????????????????????????????????????????????????? | | ??????????????????????##?#????##?????????????????? | | ????????????????####### # #### #?????????????????? | | ??????????????###; ; ; ; ##????????????????? | | ????????????###; ; ; ;;;; ;#???##???????????? | | ??????????###; ; ; ; ?? ????????????? | | ?????????## ; ; ; ;;;;;;;;###;##???????????? | | ????????## ; ; ; ; ; ##??????????? | | ???????## ; ; ; ; ; ##?????????? | | ??????## ; ; ; ; ; ##????????? | | ??????# ; ; ; ; ; #????????? | | ?????## ; ; ; ; ; ##???????? | | ?????# ; ; ; ; ; ##??????? | | ????## ; ; ; ; ; #??????? | | ????# ; ; ; ; ; #??????? | | ???## ; ; ; ; ; ##?????? | | ???#;;;;; ; ; ; ; ; #?????? | | ???# ; ; ; ; ; ; #?????? | | ####;;; ; ; ; ; ; ; #?????? | | ;;;;;;;;;;;;;;;;;;;;; ; ; #?????? | | ; ; ;@; ; ; #?????? | | ;;;;;;;;;;;;;;;;;;;;;;; ; ; #?????? | | / % p ! ; ; ; #????? | | / % YY % ; ; ; ##????? | | / p ; ; ; #?????? | | ;;;;;;;;;;;;;;;;;;;pp ; ; #?????? | | ; ; ; ; #?????? | | ;;;;;;;;;;;;;;;;;;; ;; ;;;; #####?# | | "; ; ; ; ; ; ; ; # #?# | | """""; ; ; ; ; ;/ ;; W W ;## ### | | """"""; ; ; ; ; ; h h h | | """"""; ; ; ; ; ; h | | " ; ; ; ; ; ; % | | " # ; ; ; ; ; % | | """ " # ; ; ; ; ; | | """" ##; ; ; ; ; ;;; W ### ### | | " ### ; ; ; ;;;;;; ; #?# #?# | | " #?## ; ; ; ;;;;; #####?#####?# | | """"""#??## ; ; ; ; ;##???????????? | | " #???###; ; ; ; ##????????????? | | ####????????###" ; ; #?????????????? | | ??????????????###" ## #?????????????? | | ????????????????####### #######? ????????????????? | | ???????????????????????#?????????????????????????? | | ?????????????????????????????????????????????????? | +----------------------------------------------------+ Best States ------------- Heat Dissipation 72 Energy Generation 48 Energy Capacity 715 Matter Stores 300 Matter Capacity 300 Sight Range 24 Robot Scan Range 16 Terrain Scan Density 10 ECM Strength 2 Jamming Range 16 Additional Mass Support 25 Armor Coverage 600 Power Shielding 66 Propulsion Shielding 90 Utility Shielding 90 Evasion (%) 66 Targeting Accuracy 12 Recoil Reduction 5 Energy Filtering 50 Offensive Hacking 57 Defensive Hacking 26 Item Schematics ----------------- ECM Suite | -10/Materials | Hacked Mni. Grenade Launcher | -9/Materials | Hacked Scythe | -8/Materials | Hacked Imp. Sensor Array | -8/Storage | Hacked Hacking Suite | -8/Storage | Hacked Imp. Utility Shielding | -8/Storage | Hacked Imp. Propulsion Shielding | -8/Storage | Hacked Imp. VTOL Module | -7/Factory | Hacked Lgt. Regenerative Plating | -7/Data Miner | Free Adv. System Shield | -7/Data Miner | Free Adv. Sensor Array | -6/Factory | Scanalyzed Imp. Hacking Suite | -6/Factory | Hacked Cld. VTOL Module | -6/Factory | Hacked Stasis Canceller | -6/Factory | Hacked Adv. Hacking Suite | -6/Factory | Hacked Imp. Target Analyzer | -6/Zion | Archive Imp. Kinecellerator | -6/Zion | Archive Proton Cannon | -6/Zion | Archive Remote Force Field | -6/Zion | Archive Imp. Arc Projector | -6/Zion | Archive Magnetic Acceleration Cannon | -6/Zion | Archive Adv. Thermal Shield | -6/Zion | Archive Matter Neutralizer | -6/Zion | Archive Force Field | -6/Zion | Archive Variable Charge Gun | -6/Zion | Archive Nuclear Pulse Thruster | -6/Zion | Archive Lance | -6/Zion | Archive EM Disruption Field | -6/Zion | Archive Lrn. Phase Cannon | -6/Zion | Archive Imp. Transmission Jammer | -5/Factory | Hacked Exp. Propulsion Shielding | -5/Factory | Hacked Exp. Optical Array | -5/Zhirov | Free Exp. Utility Shielding | -4/Factory | Hacked Exp. Cesium-ion Thruster | -4/Factory | Hacked Enh. Quantum Rifle | -4/Extension | Hacked Impulse Thruster | -4/Extension | Hacked Imp. Diametric Drive | -3/Research | Hacked System Purifier | -3/Research | Hacked Exp. Sensor Array | -3/Research | Hacked Exp. ECM Suite | -3/Testing | Archive Neutron Cannon | -3/Testing | Archive Adv. Kinecellerator | -3/Testing | Archive Lgt. Quantum Reactor | -3/Testing | Hacked Exp. Power Shielding | -2/Research | Hacked Imp. Q-thruster | -2/Quarantine | Archive Com. Mass Driver | -2/Quarantine | Archive Robot Schematics ------------------ L-41 Fighter | -6/Factory | Hacked G-50 Soldier | -6/Zion | Archive K-01 Serf | -6/Zion | Archive S-43 Plague | -3/Testing | Archive T-07 Excavator | -3/Testing | Archive B-74 Champion | -3/Testing | Archive Fabricated ------------ Imp. Utility Shielding | x2 | -7/Factory Mni. Grenade Launcher | x1 | -7/Factory Adv. Hacking Suite | x1 | -6/Factory Imp. Propulsion Shielding | x2 | -5/Factory Exp. Propulsion Shielding | x1 | -5/Factory Exp. Propulsion Shielding | x1 | -5/Factory Adv. Hacking Suite | x1 | -5/Factory Adv. System Shield | x1 | -5/Factory Stasis Canceller | x1 | -4/Factory Exp. Utility Shielding | x1 | -4/Factory Exp. Propulsion Shielding | x1 | -3/Research Imp. Diametric Drive | x1 | -3/Research Exp. Propulsion Shielding | x1 | -2/Research Exp. Propulsion Shielding | x1 | -1/Access Exp. Utility Shielding | x1 | -1/Access Alien Tech Used ----------------- Integrated Dissipator Transdimensional Reconstructor Matter Drive Core Cannon Phase Armor Subatomic Replicator Supercharged Integrated Reactor Terrabomb Achievements -------------- 404 Max Potential Poison In The Code Challenges ------------ None Game ------ Seed ComponentSpacefoldFlakker Manual? 0 Play Time 05:29:05 Cumulative 218.6 hours Start 2024.06.28 @ 02:12:50 End 2024.06.28 @ 07:57:42 Sessions 1 Manual Loads 0 Difficulty Rogue Special Mode None Game No. 220 Rogue 220 Adventurer 0 Explorer 0 Win Type - Total 15 Types 14/0/0/1/0/0/0/0/0 Lore% 73 Gallery% 83 Achievement% 80 Wizard Run 0 Options --------- Layout 1 ASCII 0 Keyboard 0 Movement Numpad Keybinds 0 Fullscreen 1 Font 24/Smallcaps Map View 50x35 Zoom Use 0% Tactical HUD 1 Map Filters NONE Filters NONE Steam 1 RUN: 80ad59d4-22ef-4047-8153-c8a7e3130f3e